Workbook

Sheet DAMAN
A1: GANPATI PETROCHEMICALS
A2: Consigment Stockist of : HALDIA PETROCHEMICALS LTD.
A3: 152,Sanjay Bldg. No. 6,Mittal Ind.Estate,Andheri Kurla Road,Marol,Andheri(East),MUMBAI-400 059.
A4: Tel. 28509801 / 28517451 / 32460637 Telefax. 28509802 / E- MAIL ganpetro@vsnl.com
A5: HDPE / PP / LLDPE PRICES EX-HALDIA PETROCHEMICALS LTD. PLANT FOR DAMAN, SILVASSA & DADRA
A6: Daman W.H. Add :- House no. DGGP / 10-B, Survey No. 747 & 748, Village Kalaria, Nani Daman, Daman - 396210, Tel:-0260-2240086, 9377319643
A7: HDPE, LLDPE & PP PRICE W.E.F. DT. 19.09.2013
A8: GRADE | B8: BASIC | C8: LESS. | D8: LESS. | E8: ADD E.D | F8: ADD CST | G8: ADD | H8: ADD S.T. | I8: CASH AMT
A9: HDPE | C9: C.D. | D9: LOC.SUB | E9: 0.1236 | F9: 0.02 | G9: TRANSP | H9: 0.0309 | I9: PMT
A10: M 6007L / M 5005L | B10: 106550 | C10: 1000 | D10: 6750 | E10: =+(B10-C10-D10)*0.1236 -> 12211.68 | F10: =+(B10-C10-D10+E10)*0.02 -> 2220.2336 | G10: 3101 | H10: =+G10*0.0309 -> 95.8209 | I10: =+B10-C10-D10+E10+F10+G10+H10 -> 116428.7345
A11: M 6007LU | B11: 108050 | C11: 1000 | D11: 6750 | E11: =+(B11-C11-D11)*0.1236 -> 12397.08 | F11: =+(B11-C11-D11+E11)*0.02 -> 2253.9416 | G11: 3101 | H11: =+G11*0.0309 -> 95.8209 | I11: =+B11-C11-D11+E11+F11+G11+H11 -> 118147.8425
A12: M 5002L | B12: 106050 | C12: 1000 | D12: 6750 | E12: 12149.88 | F12: 2208.9976 | G12: 3101 | H12: 95.8209 | I12: 115855.6985
A13: HD BM B 6401 | B13: 106500 | C13: 1000 | D13: 6750 | E13: 12205.5 | F13: 2219.11 | G13: 3101 | H13: 95.8209 | I13: 116371.4309
A14: HD BM E 5201 | B14: 108000 | C14: 1000 | D14: 6750 | E14: 12390.9 | F14: 2252.818 | G14: 3101 | H14: 95.8209 | I14: 118090.5389
A15: HD BM E5201S | B15: 107000 | C15: 1000 | D15: 6750 | E15: 12267.3 | F15: 2230.346 | G15: 3101 | H15: 95.8209 | I15: 116944.4669
A16: MBM B 5500 | B16: 110200 | C16: 1000 | D16: 6500 | E16: 12693.72 | F16: 2307.8744 | G16: 3101 | H16: 95.8209 | I16: 120898.4153
A17: HM FILM F 5600/5400 | B17: 106450 | C17: 1000 | D17: 6500 | E17: 12230.22 | F17: 2223.6044 | G17: 3101 | H17: 95.8209 | I17: 116600.6453
A18: RAF/MFIL R5801 | B18: 108850 | C18: 1000 | D18: 6600 | E18: 12514.5 | F18: 2275.29 | G18: 3101 | H18: 95.8209 | I18: 119236.6109
A19: RAF/MFIL HD T9 | B19: 105850 | C19: 1000 | D19: 6600 | E19: 12143.7 | F19: 2207.874 | G19: 3101 | H19: 95.8209 | I19: 115798.3949
A20: HD FILM HDT6 / F5001 | B20: 108350 | C20: 1000 | D20: 7650 | E20: 12322.92 | F20: 2240.4584 | G20: 3101 | H20: 95.8209 | I20: 117460.1993
A21: PIPE P5200UV | B21: 111250 | C21: 1000 | D21: 7000 | E21: 12761.7 | F21: 2320.234 | G21: 3101 | H21: 95.8209 | I21: 121528.7549
A22: IM M 5018L/M 5025L/M5818 | B22: 104400 | C22: 1000 | D22: 7050 | E22: 11908.86 | F22: 2165.1772 | G22: 3101 | H22: 95.8209 | I22: 113620.8581
A23: RAF HD T10 / HD T10S | B23: 106450 | C23: 1000 | D23: 6350 | E23: 12248.76 | F23: 2226.9752 | G23: 3101 | H23: 95.8209 | I23: 116772.5561
A24: PIPE P 5300 | B24: 111700 | C24: 1000 | D24: 7100 | E24: 12804.96 | F24: 2328.0992 | G24: 3101 | H24: 95.8209 | I24: 121929.8801
A25: PIPE P5200(P.E-63) | B25: 109750 | C25: 1000 | D25: 7000 | E25: 12576.3 | F25: 2286.526 | G25: 3101 | H25: 95.8209 | I25: 119809.6469
A26: HD T9C | B26: 99850 | C26: 0 | D26: 2250 | E26: 12063.36 | F26: 2193.2672 | G26: 3101 | H26: 95.8209 | I26: 115053.4481
A27: OG | B27: 98850 | C27: 0 | D27: 2200 | E27: =+(B27-C27-D27)*0.1236 -> 11945.94 | F27: =+(B27-C27-D27+E27)*0.02 -> 2171.9188 | G27: 3101 | H27: =+G27*0.0309 -> 95.8209 | I27: =+B27-C27-D27+E27+F27+G27+H27 -> 113964.6797
A28: PP | F28: 0
A29: FILM F 110 | B29: 110800 | C29: 1000 | D29: 6050 | E29: =+(B29-C29-D29)*0.1236 -> 12823.5 | F29: 2331.47 | G29: 3101 | H29: =+G29*0.0309 -> 95.8209 | I29: 122101.7909
A30: HPIM M 103 | B30: 110600 | C30: 1000 | D30: 7000 | E30: 12681.36 | F30: 2305.6272 | G30: 3101 | H30: 95.8209 | I30: 120783.8081
A31: HPIM M 110 | B31: 109250 | C31: 1000 | D31: 6200 | E31: 12613.38 | F31: 2293.2676 | G31: 3101 | H31: 95.8209 | I31: 120153.4685
A32: TF T 103 / T 105N | B32: 111350 | C32: 1000 | D32: 5800 | E32: 12922.38 | F32: 2349.4476 | G32: 3101 | H32: 95.8209 | I32: 123018.6485
A33: RAFFIA R 103 | B33: 115150 | C33: 1000 | D33: 7000 | E33: 13243.74 | F33: 2407.8748 | G33: 3101 | H33: 95.8209 | I33: 125998.4357
A34: BOPP F 103 / F 103S | B34: 111550 | C34: 1000 | D34: 6400 | E34: 12872.94 | F34: 2340.4588 | G34: 3101 | H34: 95.8209 | I34: 122560.2197
A35: PP M 108/ M106 | B35: 109150 | C35: 1000 | D35: 6600 | E35: 12551.58 | F35: 2282.0316 | G35: 3101 | H35: 95.8209 | I35: 119580.4325
A36: PP F135 / E125 | B36: 111150 | C36: 1000 | D36: 5800 | E36: 12897.66 | F36: 2344.9532 | G36: 3101 | H36: 95.8209 | I36: 122789.4341
A37: PP HP OG | B37: 104250 | C37: 0 | D37: 0 | E37: 12885.3 | F37: 2342.706 | G37: 3101 | H37: 95.8209 | I37: 122674.8269
A38: PP PS | B38: 100250 | C38: 0 | D38: 0 | E38: 12390.9 | F38: 2252.818 | G38: 3101 | H38: 95.8209 | I38: 118090.5389
A39: PP WS | B39: 98250 | C39: 0 | D39: 0 | E39: 12143.7 | F39: 2207.874 | G39: 3101 | H39: 95.8209 | I39: 115798.3949
A40: PP CP/RCP | F40: 0
A41: PPCP M 311T | B41: 116100 | C41: 1000 | D41: 7100 | E41: =+(B41-C41-D41)*0.1236 -> 13348.8 | F41: 2426.976 | G41: 3101 | H41: =+G41*0.0309 -> 95.8209 | I41: 126972.5969
A42: PPCP M 340 / M365 | B42: 113800 | C42: 1000 | D42: 6800 | E42: 13101.6 | F42: 2382.032 | G42: 3101 | H42: 95.8209 | I42: 124680.4529
A43: PP CP M 310 | B43: 114500 | C43: 1000 | D43: 6450 | E43: 13231.38 | F43: 2405.6276 | G43: 3101 | H43: 95.8209 | I43: 125883.8285
A44: PP CP M 312 | B44: 112600 | C44: 1000 | D44: 7150 | E44: 12910.02 | F44: 2347.2004 | G44: 3101 | H44: 95.8209 | I44: 122904.0413
A45: PP CP M 304 / M 325 | B45: 112550 | C45: 1000 | D45: 7100 | E45: 12910.02 | F45: 2347.2004 | G45: 3101 | H45: 95.8209 | I45: 122904.0413
A46: PP CP M 307 / M 315 | B46: 112050 | C46: 1000 | D46: 7100 | E46: 12848.22 | F46: 2335.9644 | G46: 3101 | H46: 95.8209 | I46: 122331.0053
A47: PP RCP B 200 | B47: 112900 | C47: 1000 | D47: 6050 | E47: 13083.06 | F47: 2378.6612 | G47: 3101 | H47: 95.8209 | I47: 124508.5421
A48: PP RCP B202S | B48: 115900 | C48: 1000 | D48: 5750 | E48: 13490.94 | F48: 2452.8188 | G48: 3101 | H48: 95.8209 | I48: 128290.5797
A49: PP RCP M212S | B49: 114100 | C49: 1000 | D49: 7200 | E49: 13089.24 | F49: 2379.7848 | G49: 3101 | H49: 95.8209 | I49: 124565.8457
A50: LLDPE | F50: 0
A51: FILM 71601D | B51: 111450 | C51: 1000 | D51: 8650 | E51: =+(B51-C51-D51)*0.1236 -> 12582.48 | F51: 2287.6496 | G51: 3101 | H51: =+G51*0.0309 -> 95.8209 | I51: 119866.9505
A52: FILM 71501S,71601W | B52: 110900 | C52: 1000 | D52: 9100 | E52: 12458.88 | F52: 2265.1776 | G52: 3101 | H52: 95.8209 | I52: 118720.8785
A53: FILM 71602 S / W | B53: 110900 | C53: 1000 | D53: 9100 | E53: 12458.88 | F53: 2265.1776 | G53: 3101 | H53: 95.8209 | I53: 118720.8785
A54: ROTO 73005 T/73204 T | B54: 108750 | C54: 1000 | D54: 6450 | E54: 12520.68 | F54: 2276.4136 | G54: 3101 | H54: 95.8209 | I54: 119293.9145
A55: ROTO 73005 TU | B55: 110250 | C55: 1000 | D55: 6450 | E55: 12706.08 | F55: 2310.1216 | G55: 3101 | H55: 95.8209 | I55: 121013.0225
A56: EC 72307 E | B56: 113950 | C56: 1000 | D56: 7400 | E56: 13045.98 | F56: 2371.9196 | G56: 3101 | H56: 95.8209 | I56: 124164.7205
A57: LLT - 12 | B57: 113450 | C57: 1000 | D57: 7400 | E57: =+(B57-C57-D57)*0.1236 -> 12984.18 | F57: 2360.6836 | G57: 3101 | H57: =+G57*0.0309 -> 95.8209 | I57: 123591.6845
A58: OG | B58: 103850 | C58: 0 | D58: 2350 | E58: 12545.4 | F58: 2280.908 | G58: 3101 | H58: 95.8209 | I58: 119523.1289
A59: POST SALES QUANTITY DISCOUNT AS APPLICABLE
A60: QTY. MT FOR HD / LL | B60: >= 10 | C60: >=15 | D60: >=30 | E60: >=60 | F60: >= 100 | G60: >= 200 | H60: >= 400
A61: HDPE/LLDPE | B61: 300/- | C61: 300/- | D61: 400/- | E61: 450/- | F61: 550/- | G61: 650/- | H61: 750/-
A62: QTY. MT FOR PP | B62: >=15 | C62: >=30 | D62: >=60 | E62: >=100 | F62: >=200 | G62: >=400
A63: PP | B63: 300/- | C63: 400/- | D63: 450/- | E63: 550/- | F63: 650/- | G63: 750/-
A64: · FOR CREDIT PURCHASE INTREST FREE CREDIT WILL BE 14 DAYS FROM THE DATE OF INVOICE. AN EPI
A65: RS. 70 / MT PER DAY FOR EX-PLANT
A66: · Trade Discount of Rs. 4000 PMT applicable on R103 - to be adjusted pre-exice basis on Ex-plant sales only.
A67: · Trade Discount of Rs. 3000 PMT applicable on R5801 - to be adjusted pre-exice basis on Ex-plant sales only.
A68: · Trade Discount of Rs. 2000 PMT applicable on B5500 - to be adjusted pre-exice basis on Ex-plant sales only.
A69: · NON PRIME GRADE RS.800/MT LESS THAN THE BASIC PRIME GRADE.
A70: · CHEQUE RETURN PENALTY RS.1000/-PER INSTRUMENT.
A71: · UNLOADING & VARAI CHARGES TO BE BORNE BY THE CUSTOMER.
A72: · “C” FORM REQUIRED IN ADVANCE.
A73: · QUANTITY DISCOUNT WOULD NOT BE APPLICABLE ON COMBINATION OF HDPE AND LLDPE GRADES.
A74: · PRICE MAY CHANGE WITHOUT ANY PRIOR NOTICE. PRICE PREVAILING AT THE TIME OF DISPATCH WILL APPLY.
A75: REGARDS
A76: HITESH SHAH - 9820106078
A77: MUKESH SHAH - 9322238059

Sheet GUJARAT (E)
A1: GANPATI PETROCHEMICALS
A2: Consigment Stockist of : HALDIA PETROCHEMICALS LTD.
A3: 152,Sanjay Bldg. No. 6,Mittal Ind.Estate,Andheri Kurla Road,Marol,Andheri(East),MUMBAI-400 059.
A4: Tel. 28509801 / 28517451 / 32460637 Telefax. 28509802 / E- MAIL ganpetro@vsnl.com
A5: HDPE / PP / LLDPE PRICES EX-HALDIA PETROCHEMICALS LTD. PLANT FOR GUJARAT(E)
A6: Daman W.H. Add :- House no. DGGP / 10-B, Survey No. 747 & 748, Village Kalaria, Nani Daman, Daman - 396210, Tel:-0260-2240086, 9377319643
A7: HDPE, LLDPE & PP PRICE W.E.F. DT. 19.09.2013
A8: GRADE | B8: BASIC | C8: LESS. | D8: LESS. | E8: ADD | F8: ADD CST | G8: CASH AMT
A9: HDPE | C9: C.D. | D9: LOC.SUB | E9: 0.1236 | F9: 0.02 | G9: PMT
A10: M 6007L / M 5005L | B10: 106550 | C10: 1000 | D10: 6200 | E10: =+(B10-C10-D10)*0.1236 -> 12279.66 | F10: =+(B10-C10-D10+E10)*0.02 -> 2232.5932 | G10: =+B10-C10-D10+E10+F10 -> 113862.2532 | I10: TRANS.CHARGES PMT.
A11: M 6007LU | B11: 108050 | C11: 1000 | D11: 6200 | E11: =+(B11-C11-D11)*0.1236 -> 12465.06 | F11: =+(B11-C11-D11+E11)*0.02 -> 2266.3012 | G11: =+B11-C11-D11+E11+F11 -> 115581.3612
A12: M 5002L | B12: 106050 | C12: 1000 | D12: 6200 | E12: 12217.86 | F12: 2221.3572 | G12: 113289.2172
A13: HD BM B 6401 | B13: 106500 | C13: 1000 | D13: 6250 | E13: 12267.3 | F13: 2230.346 | G13: 113747.646 | H13: LOCATIONS | I13: FREIGHT | J13: ADD S.T.
A14: HD BM E 5201 | B14: 108000 | C14: 1000 | D14: 6250 | E14: 12452.7 | F14: 2264.054 | G14: 115466.754 | H14: **T.D. | I14: RS/MT. | J14: 0.0309
A15: HD BM E5201S | B15: 107000 | C15: 1000 | D15: 6250 | E15: 12329.1 | F15: 2241.582 | G15: 114320.682
A16: MBM B 5500 | B16: 110200 | C16: 1000 | D16: 6050 | E16: 12749.34 | F16: 2317.9868 | G16: 118217.3268
A17: HM FILM F 5600/5400 | B17: 106450 | C17: 1000 | D17: 5700 | E17: 12329.1 | F17: 2241.582 | G17: 114320.682 | H17: AHMD. - 5 | I17: 3288 | J17: =+I17*0.0309 -> 101.5992
A18: RAF/MFIL R5801 | B18: 108850 | C18: 1000 | D18: 6050 | E18: 12582.48 | F18: 2287.6496 | G18: 116670.1296 | H18: HALOL - 5 | I18: 3334 | J18: =+I18*0.0309 -> 103.0206
A19: RAF/MFIL HD T9 | B19: 105850 | C19: 1000 | D19: 6050 | E19: 12211.68 | F19: 2220.2336 | G19: 113231.9136 | H19: BARODA - 5 | I19: 3282 | J19: =+I19*0.0309 -> 101.4138
A20: HD FILM HDT6 / F5001 | B20: 108350 | C20: 1000 | D20: 6800 | E20: 12427.98 | F20: 2259.5596 | G20: 115237.5396 | H20: KALOL-M- 5 | I20: 3380 | J20: =+I20*0.0309 -> 104.442
A21: PIPE P5200UV | B21: 111250 | C21: 1000 | D21: 6450 | E21: 12829.68 | F21: 2332.5936 | G21: 118962.2736
A22: IM M 5018L/M 5025L/M5818 | B22: 104400 | C22: 1000 | D22: 5900 | E22: 12051 | F22: 2191.02 | G22: 111742.02 | H22: VATVA-5 | I22: 3288 | J22: =+I22*0.0309 -> 101.5992
A23: RAF HD T10 / HD T10S | B23: 106450 | C23: 1000 | D23: 5800 | E23: 12316.74 | F23: 2239.3348 | G23: 114206.0748 | H23: BHARUCH | I23: 3064 | J23: =+I23*0.0309 -> 94.6776
A24: PIPE P 5300 | B24: 111700 | C24: 1000 | D24: 6600 | E24: 12866.76 | F24: 2339.3352 | G24: 119306.0952 | H24: ANAND | I24: 3235 | J24: =+I24*0.0309 -> 99.9615
A25: PIPE P5200(P.E-63) | B25: 109750 | C25: 1000 | D25: 6450 | E25: 12644.28 | F25: 2298.8856 | G25: 117243.1656
A26: HD T9C | B26: 99850 | C26: 0 | D26: 2250 | E26: 12063.36 | F26: 2193.2672 | G26: 111856.6272
A27: OG | B27: 98850 | C27: 0 | D27: 2200 | E27: 11945.94 | F27: 2171.9188 | G27: 110767.8588 | L27: `
A28: PP
A29: FILM F 110 | B29: 110800 | C29: 1000 | D29: 5950 | E29: =+(B29-C29-D29)*0.1236 -> 12835.86 | F29: 2333.7172 | G29: =+B29-C29-D29+E29+F29 -> 119019.5772 | H29: *T.D.=TRANSIT DAYS
A30: HPIM M 103 | B30: 110600 | C30: 1000 | D30: 7000 | E30: 12681.36 | F30: 2305.6272 | G30: 117586.9872
A31: HPIM M 110 | B31: 109250 | C31: 1000 | D31: 6200 | E31: 12613.38 | F31: 2293.2676 | G31: 116956.6476
A32: TF T 103 / T 105N | B32: 111350 | C32: 1000 | D32: 5200 | E32: 12996.54 | F32: 2362.9308 | G32: 120509.4708
A33: RAFFIA R 103 | B33: 115150 | C33: 1000 | D33: 7000 | E33: 13243.74 | F33: 2407.8748 | G33: 122801.6148
A34: BOPP F 103 / F 103S | B34: 111550 | C34: 1000 | D34: 5400 | E34: 12996.54 | F34: 2362.9308 | G34: 120509.4708
A35: PP M 108/ M106 | B35: 109150 | C35: 1000 | D35: 6600 | E35: 12551.58 | F35: 2282.0316 | G35: 116383.6116
A36: PP F135 / E125 | B36: 111150 | C36: 1000 | D36: 5400 | E36: 12947.1 | F36: 2353.942 | G36: 120051.042
A37: PP HP OG | B37: 104250 | C37: 0 | D37: 0 | E37: 12885.3 | F37: 2342.706 | G37: 119478.006
A38: PP PS | B38: 100250 | C38: 0 | D38: 0 | E38: 12390.9 | F38: 2252.818 | G38: 114893.718
A39: PP WS | B39: 98250 | C39: 0 | D39: 0 | E39: 12143.7 | F39: 2207.874 | G39: 112601.574
A40: PP CP/RCP | E40: =(B40-C40-D40)*16% -> 0 | G40: =(B40-C40-D40)*16%+(B40-C40-D40) -> 0
A41: PPCP M 311T | B41: 116100 | C41: 1000 | D41: 6350 | E41: =+(B41-C41-D41)*0.1236 -> 13441.5 | F41: 2443.83 | G41: =+B41-C41-D41+E41+F41 -> 124635.33
A42: PPCP M 340 / M365 | B42: 113800 | C42: 1000 | D42: 6100 | E42: 13188.12 | F42: 2397.7624 | G42: 122285.8824
A43: PP CP M 310 | B43: 114500 | C43: 1000 | D43: 5750 | E43: 13317.9 | F43: 2421.358 | G43: 123489.258
A44: PP CP M 312 | B44: 112600 | C44: 1000 | D44: 6200 | E44: 13027.44 | F44: 2368.5488 | G44: 120795.9888
A45: PP CP M 304 / M 325 | B45: 112550 | C45: 1000 | D45: 6400 | E45: 12996.54 | F45: 2362.9308 | G45: 120509.4708
A46: PP CP M 307 / M 315 | B46: 112050 | C46: 1000 | D46: 6400 | E46: 12934.74 | F46: 2351.6948 | G46: 119936.4348
A47: PP RCP B 200 | B47: 112900 | C47: 1000 | D47: 5650 | E47: 13132.5 | F47: 2387.65 | G47: 121770.15
A48: PP RCP B202S | B48: 115900 | C48: 1000 | D48: 5000 | E48: 13583.64 | F48: 2469.6728 | G48: 125953.3128
A49: PP RCP M212S | B49: 114100 | C49: 1000 | D49: 6000 | E49: 13237.56 | F49: 2406.7512 | G49: 122744.3112
A50: LLDPE
A51: FILM 71601D | B51: 111450 | C51: 1000 | D51: 7950 | E51: =+(B51-C51-D51)*0.1236 -> 12669 | F51: 2303.38 | G51: =+B51-C51-D51+E51+F51 -> 117472.38
A52: FILM 71501S,71601W | B52: 110900 | C52: 1000 | D52: 8400 | E52: 12545.4 | F52: 2280.908 | G52: 116326.308
A53: FILM 71602 S / W | B53: 110900 | C53: 1000 | D53: 8400 | E53: 12545.4 | F53: 2280.908 | G53: 116326.308
A54: ROTO 73005 T/73204 T | B54: 108750 | C54: 1000 | D54: 5950 | E54: 12582.48 | F54: 2287.6496 | G54: 116670.1296
A55: ROTO 73005 TU | B55: 110250 | C55: 1000 | D55: 5950 | E55: 12767.88 | F55: 2321.3576 | G55: 118389.2376
A56: EC 72307 E | B56: 113950 | C56: 1000 | D56: 6900 | E56: 13107.78 | F56: 2383.1556 | G56: 121540.9356
A57: LLT - 12 | B57: 113450 | C57: 1000 | D57: 6900 | E57: =+(B57-C57-D57)*0.1236 -> 13045.98 | F57: 2371.9196 | G57: 120967.8996
A58: OG | B58: 103850 | C58: 0 | D58: 2350 | E58: 12545.4 | F58: 2280.908 | G58: 116326.308
A59: POST SALES QUANTITY DISCOUNT AS APPLICABLE
A60: QTY. MT FOR HD / LL | B60: >= 10 | C60: >=15 | D60: >=30 | E60: >=60 | F60: >= 100 | G60: >= 200 | H60: >= 400
A61: HDPE/LLDPE | B61: 300/- | C61: 300/- | D61: 400/- | E61: 450/- | F61: 550/- | G61: 650/- | H61: 750/-
A62: QTY. MT FOR PP | B62: >=15 | C62: >=30 | D62: >=60 | E62: >=100 | F62: >=200 | G62: >=400
A63: PP | B63: 300/- | C63: 400/- | D63: 450/- | E63: 550/- | F63: 650/- | G63: 750/-
A64: · FOR CREDIT PURCHASE INTREST FREE CREDIT WILL BE 14 DAYS FROM THE DATE OF INVOICE. AN EPI
A65: RS. 70 / MT PER DAY FOR EX-PLANT
A66: · Trade Discount of Rs. 4000 PMT applicable on R103 - to be adjusted pre-exice basis on Ex-plant sales only.
A67: · Trade Discount of Rs. 3000 PMT applicable on R5801 - to be adjusted pre-exice basis on Ex-plant sales only.
A68: · Trade Discount of Rs. 2000 PMT applicable on B5500 - to be adjusted pre-exice basis on Ex-plant sales only.
A69: · NON PRIME GRADE RS.800/MT LESS THAN THE BASIC PRIME GRADE.
A70: · CHEQUE RETURN PENALTY RS.1000/-PER INSTRUMENT.
A71: · UNLOADING & VARAI CHARGES TO BE BORNE BY THE CUSTOMER.
A72: · “C” FORM REQUIRED IN ADVANCE.
A73: · QUANTITY DISCOUNT WOULD NOT BE APPLICABLE ON COMBINATION OF HDPE AND LLDPE GRADES.
A74: · PRICE MAY CHANGE WITHOUT ANY PRIOR NOTICE. PRICE PREVAILING AT THE TIME OF DISPATCH WILL APPLY.
A75: REGARDS
A76: HITESH SHAH - 9820106078
A77: MUKESH SHAH - 9322238059

Sheet GUJARAT (S)
A1: GANPATI PETROCHEMICALS
A2: Consigment Stockist of : HALDIA PETROCHEMICALS LTD.
A3: 152,Sanjay Bldg. No. 6,Mittal Ind.Estate,Andheri Kurla Road,Marol,Andheri(East),MUMBAI-400 059.
A4: Tel. 28509801 / 28517451 / 32460637 Telefax. 28509802 / E- MAIL ganpetro@vsnl.com
A5: HDPE / PP / LLDPE PRICES EX-HALDIA PETROCHEMICALS LTD. PLANT FOR GUJARAT(SOUTH)
A6: Daman W.H. Add :- House no. DGGP / 10-B, Survey No. 747 & 748, Village Kalaria, Nani Daman, Daman - 396210, Tel:-0260-2240086, 9377319643
A7: HDPE, LLDPE & PP PRICE W.E.F. DT. 19.09.2013
A8: GRADE | B8: BASIC | C8: LESS. | D8: LESS. | E8: ADD | F8: ADD CST | G8: CASH AMT
A9: HDPE | C9: C.D. | D9: LOC.SUB | E9: 0.1236 | F9: 0.02 | G9: PMT
A10: M 6007L / M 5005L | B10: 106550 | C10: 1000 | D10: 6600 | E10: =+(B10-C10-D10)*0.1236 -> 12230.22 | F10: =+(B10-C10-D10+E10)*0.02 -> 2223.6044 | G10: =+B10-C10-D10+E10+F10 -> 113403.8244 | I10: TRANS.CHARGES PMT.
A11: M 6007LU | B11: 108050 | C11: 1000 | D11: 6600 | E11: =+(B11-C11-D11)*0.1236 -> 12415.62 | F11: =+(B11-C11-D11+E11)*0.02 -> 2257.3124 | G11: =+B11-C11-D11+E11+F11 -> 115122.9324
A12: M 5002L | B12: 106050 | C12: 1000 | D12: 6600 | E12: 12168.42 | F12: 2212.3684 | G12: 112830.7884
A13: HD BM B 6401 | B13: 106500 | C13: 1000 | D13: 6800 | E13: 12199.32 | F13: 2217.9864 | G13: 113117.3064 | H13: LOCATIONS | I13: FREIGHT | J13: ADD S.T.
A14: HD BM E 5201 | B14: 108000 | C14: 1000 | D14: 6800 | E14: 12384.72 | F14: 2251.6944 | G14: 114836.4144 | H14: **T.D. | I14: RS/MT. | J14: 0.0309
A15: HD BM E5201S | B15: 107000 | C15: 1000 | D15: 6800 | E15: 12261.12 | F15: 2229.2224 | G15: 113690.3424
A16: MBM B 5500 | B16: 110200 | C16: 1000 | D16: 6500 | E16: 12693.72 | F16: 2307.8744 | G16: 117701.5944
A17: HM FILM F 5600/5400 | B17: 106450 | C17: 1000 | D17: 6050 | E17: 12285.84 | F17: 2233.7168 | G17: 113919.5568 | H17: VAPI - 5 | I17: 3102 | J17: =+I17*0.0309 -> 95.8518
A18: RAF/MFIL R5801 | B18: 108850 | C18: 1000 | D18: 6600 | E18: 12514.5 | F18: 2275.29 | G18: 116039.79 | H18: SURAT - 5 | I18: 3076 | J18: =+I18*0.0309 -> 95.0484
A19: RAF/MFIL HD T9 | B19: 105850 | C19: 1000 | D19: 6600 | E19: 12143.7 | F19: 2207.874 | G19: 112601.574 | H19: UMERGAON - 5 | I19: 3082 | J19: =+I19*0.0309 -> 95.2338
A20: HD FILM HDT6 / F5001 | B20: 108350 | C20: 1000 | D20: 7350 | E20: 12360 | F20: 2247.2 | G20: 114607.2 | H20: VALSAD - 5 | I20: 3100 | J20: =+I20*0.0309 -> 95.79
A21: PIPE P5200UV | B21: 111250 | C21: 1000 | D21: 6800 | E21: 12786.42 | F21: 2324.7284 | G21: 118561.1484
A22: IM M 5018L/M 5025L/M5818 | B22: 104400 | C22: 1000 | D22: 6300 | E22: 12001.56 | F22: 2182.0312 | G22: 111283.5912
A23: RAF HD T10 / HD T10S | B23: 106450 | C23: 1000 | D23: 6200 | E23: 12267.3 | F23: 2230.346 | G23: 113747.646
A24: PIPE P 5300 | B24: 111700 | C24: 1000 | D24: 7100 | E24: 12804.96 | F24: 2328.0992 | G24: 118733.0592
A25: PIPE P5200(P.E-63) | B25: 109750 | C25: 1000 | D25: 6800 | E25: 12601.02 | F25: 2291.0204 | G25: 116842.0404
A26: HD T9C | B26: 99850 | C26: 0 | D26: 2250 | E26: 12063.36 | F26: 2193.2672 | G26: 111856.6272
A27: OG | B27: 98850 | C27: 0 | D27: 2200 | E27: 11945.94 | F27: 2171.9188 | G27: 110767.8588
A28: PP
A29: FILM F 110 | B29: 110800 | C29: 1000 | D29: 5950 | E29: =+(B29-C29-D29)*0.1236 -> 12835.86 | F29: 2333.7172 | G29: =+B29-C29-D29+E29+F29 -> 119019.5772 | H29: *T.D.=TRANSIT DAYS
A30: HPIM M 103 | B30: 110600 | C30: 1000 | D30: 7000 | E30: 12681.36 | F30: 2305.6272 | G30: 117586.9872
A31: HPIM M 110 | B31: 109250 | C31: 1000 | D31: 6200 | E31: 12613.38 | F31: 2293.2676 | G31: 116956.6476
A32: TF T 103 / T 105N | B32: 111350 | C32: 1000 | D32: 5200 | E32: 12996.54 | F32: 2362.9308 | G32: 120509.4708
A33: RAFFIA R 103 | B33: 115150 | C33: 1000 | D33: 7000 | E33: 13243.74 | F33: 2407.8748 | G33: 122801.6148
A34: BOPP F 103 / F 103S | B34: 111550 | C34: 1000 | D34: 5400 | E34: 12996.54 | F34: 2362.9308 | G34: 120509.4708
A35: PP M 108/ M106 | B35: 109150 | C35: 1000 | D35: 6600 | E35: 12551.58 | F35: 2282.0316 | G35: 116383.6116
A36: PP F135 / E125 | B36: 111150 | C36: 1000 | D36: 5400 | E36: 12947.1 | F36: 2353.942 | G36: 120051.042
A37: PP HP OG | B37: 104250 | C37: 0 | D37: 0 | E37: 12885.3 | F37: 2342.706 | G37: 119478.006
A38: PP PS | B38: 100250 | C38: 0 | D38: 0 | E38: 12390.9 | F38: 2252.818 | G38: 114893.718
A39: PP WS | B39: 98250 | C39: 0 | D39: 0 | E39: 12143.7 | F39: 2207.874 | G39: 112601.574
A40: PP CP/RCP | E40: =(B40-C40-D40)*16% -> 0 | G40: =(B40-C40-D40)*16%+(B40-C40-D40) -> 0
A41: PPCP M 311T | B41: 116100 | C41: 1000 | D41: 6350 | E41: =+(B41-C41-D41)*0.1236 -> 13441.5 | F41: 2443.83 | G41: =+B41-C41-D41+E41+F41 -> 124635.33
A42: PPCP M 340 / M365 | B42: 113800 | C42: 1000 | D42: 6100 | E42: 13188.12 | F42: 2397.7624 | G42: 122285.8824
A43: PP CP M 310 | B43: 114500 | C43: 1000 | D43: 5750 | E43: 13317.9 | F43: 2421.358 | G43: 123489.258
A44: PP CP M 312 | B44: 112600 | C44: 1000 | D44: 6200 | E44: 13027.44 | F44: 2368.5488 | G44: 120795.9888
A45: PP CP M 304 / M 325 | B45: 112550 | C45: 1000 | D45: 6400 | E45: 12996.54 | F45: 2362.9308 | G45: 120509.4708
A46: PP CP M 307 / M 315 | B46: 112050 | C46: 1000 | D46: 6400 | E46: 12934.74 | F46: 2351.6948 | G46: 119936.4348
A47: PP RCP B 200 | B47: 112900 | C47: 1000 | D47: 5650 | E47: 13132.5 | F47: 2387.65 | G47: 121770.15
A48: PP RCP B202S | B48: 115900 | C48: 1000 | D48: 5000 | E48: 13583.64 | F48: 2469.6728 | G48: 125953.3128
A49: PP RCP M212S | B49: 114100 | C49: 1000 | D49: 6000 | E49: 13237.56 | F49: 2406.7512 | G49: 122744.3112
A50: LLDPE
A51: FILM 71601D | B51: 111450 | C51: 1000 | D51: 8350 | E51: =+(B51-C51-D51)*0.1236 -> 12619.56 | F51: 2294.3912 | G51: =+B51-C51-D51+E51+F51 -> 117013.9512
A52: FILM 71501S,71601W | B52: 110900 | C52: 1000 | D52: 8800 | E52: 12495.96 | F52: 2271.9192 | G52: 115867.8792
A53: FILM 71602 S / W | B53: 110900 | C53: 1000 | D53: 8800 | E53: 12495.96 | F53: 2271.9192 | G53: 115867.8792
A54: ROTO 73005 T/73204 T | B54: 108750 | C54: 1000 | D54: 6300 | E54: 12539.22 | F54: 2279.7844 | G54: 116269.0044
A55: ROTO 73005 TU | B55: 110250 | C55: 1000 | D55: 6300 | E55: 12724.62 | F55: 2313.4924 | G55: 117988.1124
A56: EC 72307 E | B56: 113950 | C56: 1000 | D56: 7250 | E56: 13064.52 | F56: 2375.2904 | G56: 121139.8104
A57: LLT - 12 | B57: 113450 | C57: 1000 | D57: 7250 | E57: =+(B57-C57-D57)*0.1236 -> 13002.72 | F57: 2364.0544 | G57: 120566.7744
A58: OG | B58: 103850 | C58: 0 | D58: 2350 | E58: 12545.4 | F58: 2280.908 | G58: 116326.308
A59: POST SALES QUANTITY DISCOUNT AS APPLICABLE
A60: QTY. MT FOR HD / LL | B60: >= 10 | C60: >=15 | D60: >=30 | E60: >=60 | F60: >= 100 | G60: >= 200 | H60: >= 400
A61: HDPE/LLDPE | B61: 300/- | C61: 300/- | D61: 400/- | E61: 450/- | F61: 550/- | G61: 650/- | H61: 750/-
A62: QTY. MT FOR PP | B62: >=15 | C62: >=30 | D62: >=60 | E62: >=100 | F62: >=200 | G62: >=400
A63: PP | B63: 300/- | C63: 400/- | D63: 450/- | E63: 550/- | F63: 650/- | G63: 750/-
A64: · FOR CREDIT PURCHASE INTREST FREE CREDIT WILL BE 14 DAYS FROM THE DATE OF INVOICE. AN EPI
A65: RS. 70 / MT PER DAY FOR EX-PLANT
A66: · Trade Discount of Rs. 4000 PMT applicable on R103 - to be adjusted pre-exice basis on Ex-plant sales only.
A67: · Trade Discount of Rs. 3000 PMT applicable on R5801 - to be adjusted pre-exice basis on Ex-plant sales only.
A68: · Trade Discount of Rs. 2000 PMT applicable on B5500 - to be adjusted pre-exice basis on Ex-plant sales only.
A69: · NON PRIME GRADE RS.800/MT LESS THAN THE BASIC PRIME GRADE.
A70: · CHEQUE RETURN PENALTY RS.1000/-PER INSTRUMENT.
A71: · UNLOADING & VARAI CHARGES TO BE BORNE BY THE CUSTOMER.
A72: · “C” FORM REQUIRED IN ADVANCE.
A73: · QUANTITY DISCOUNT WOULD NOT BE APPLICABLE ON COMBINATION OF HDPE AND LLDPE GRADES.
A74: · PRICE MAY CHANGE WITHOUT ANY PRIOR NOTICE. PRICE PREVAILING AT THE TIME OF DISPATCH WILL APPLY.
A75: REGARDS
A76: HITESH SHAH - 9820106078
A77: MUKESH SHAH - 9322238059

Sheet GUJARAT (W)
A1: GANPATI PETROCHEMICALS
A2: Consigment Stockist of : HALDIA PETROCHEMICALS LTD.
A3: 152,Sanjay Bldg. No. 6,Mittal Ind.Estate,Andheri Kurla Road,Marol,Andheri(East),MUMBAI-400 059.
A4: Tel. 28509801 / 28517451 / 32460637 Telefax. 28509802 / E- MAIL ganpetro@vsnl.com
A5: HDPE / PP / LLDPE PRICES EX-HALDIA PETROCHEMICALS LTD. PLANT FOR GUJARAT(WEST)
A6: Daman W.H. Add :- House no. DGGP / 10-B, Survey No. 747 & 748, Village Kalaria, Nani Daman, Daman - 396210, Tel:-0260-2240086, 9377319643
A7: HDPE, LLDPE & PP PRICE W.E.F. DT. 19.09.2013
A8: GRADE | B8: BASIC | C8: LESS. | D8: LESS. | E8: ADD | F8: ADD CST | G8: CASH AMT
A9: HDPE | C9: C.D. | D9: LOC.SUB | E9: 0.1236 | F9: 0.02 | G9: PMT
A10: M 6007L / M 5005L | B10: 106550 | C10: 1000 | D10: 6550 | E10: =+(B10-C10-D10)*0.1236 -> 12236.4 | F10: =+(B10-C10-D10+E10)*0.02 -> 2224.728 | G10: =+B10-C10-D10+E10+F10 -> 113461.128 | I10: TRANS.CHARGES PMT.
A11: M 6007LU | B11: 108050 | C11: 1000 | D11: 6550 | E11: =+(B11-C11-D11)*0.1236 -> 12421.8 | F11: =+(B11-C11-D11+E11)*0.02 -> 2258.436 | G11: =+B11-C11-D11+E11+F11 -> 115180.236
A12: M 5002L | B12: 106050 | C12: 1000 | D12: 6550 | E12: 12174.6 | F12: 2213.492 | G12: 112888.092
A13: HD BM B 6401 | B13: 106500 | C13: 1000 | D13: 6400 | E13: 12248.76 | F13: 2226.9752 | G13: 113575.7352 | H13: LOCATIONS | I13: FREIGHT | J13: ADD S.T.
A14: HD BM E 5201 | B14: 108000 | C14: 1000 | D14: 6400 | E14: 12434.16 | F14: 2260.6832 | G14: 115294.8432 | H14: **T.D. | I14: RS/MT. | J14: 0.0309
A15: HD BM E5201S | B15: 107000 | C15: 1000 | D15: 6400 | E15: 12310.56 | F15: 2238.2112 | G15: 114148.7712
A16: MBM B 5500 | B16: 110200 | C16: 1000 | D16: 6300 | E16: 12718.44 | F16: 2312.3688 | G16: 117930.8088
A17: HM FILM F 5600/5400 | B17: 106450 | C17: 1000 | D17: 5750 | E17: 12322.92 | F17: 2240.4584 | G17: 114263.3784 | H17: RAJKOT - 6 | I17: 3739 | J17: =+I17*0.0309 -> 115.5351
A18: RAF/MFIL R5801 | B18: 108850 | C18: 1000 | D18: 6400 | E18: 12539.22 | F18: 2279.7844 | G18: 116269.0044 | H18: BHAVNAGAR-6 | I18: 3839 | J18: =+I18*0.0309 -> 118.6251
A19: RAF/MFIL HD T9 | B19: 105850 | C19: 1000 | D19: 6400 | E19: 12168.42 | F19: 2212.3684 | G19: 112830.7884
A20: HD FILM HDT6 / F5001 | B20: 108350 | C20: 1000 | D20: 6950 | E20: 12409.44 | F20: 2256.1888 | G20: 115065.6288
A21: PIPE P5200UV | B21: 111250 | C21: 1000 | D21: 6800 | E21: 12786.42 | F21: 2324.7284 | G21: 118561.1484
A22: IM M 5018L/M 5025L/M5818 | B22: 104400 | C22: 1000 | D22: 6150 | E22: 12020.1 | F22: 2185.402 | G22: 111455.502
A23: RAF HD T10 / HD T10S | B23: 106450 | C23: 1000 | D23: 6050 | E23: 12285.84 | F23: 2233.7168 | G23: 113919.5568
A24: PIPE P 5300 | B24: 111700 | C24: 1000 | D24: 6900 | E24: 12829.68 | F24: 2332.5936 | G24: 118962.2736
A25: PIPE P5200(P.E-63) | B25: 109750 | C25: 1000 | D25: 6800 | E25: 12601.02 | F25: 2291.0204 | G25: 116842.0404
A26: HD T9C | B26: 99850 | C26: 0 | D26: 2250 | E26: 12063.36 | F26: 2193.2672 | G26: 111856.6272
A27: OG | B27: 98850 | C27: 0 | D27: 2200 | E27: 11945.94 | F27: 2171.9188 | G27: 110767.8588
A28: PP
A29: FILM F 110 | B29: 110800 | C29: 1000 | D29: 6800 | E29: =+(B29-C29-D29)*0.1236 -> 12730.8 | F29: =+(B29-C29-D29+E29)*0.02 -> 2314.616 | G29: =+B29-C29-D29+E29+F29 -> 118045.416 | H29: *T.D.=TRANSIT DAYS
A30: HPIM M 103 | B30: 110600 | C30: 1000 | D30: 7450 | E30: 12625.74 | F30: 2295.5148 | G30: 117071.2548
A31: HPIM M 110 | B31: 109250 | C31: 1000 | D31: 6750 | E31: 12545.4 | F31: 2280.908 | G31: 116326.308
A32: TF T 103 / T 105N | B32: 111350 | C32: 1000 | D32: 6750 | E32: 12804.96 | F32: 2328.0992 | G32: 118733.0592
A33: RAFFIA R 103 | B33: 115150 | C33: 1000 | D33: 7450 | E33: 13188.12 | F33: 2397.7624 | G33: 122285.8824
A34: BOPP F 103 / F 103S | B34: 111550 | C34: 1000 | D34: 6950 | E34: 12804.96 | F34: 2328.0992 | G34: 118733.0592
A35: PP M 108/ M106 | B35: 109150 | C35: 1000 | D35: 7150 | E35: 12483.6 | F35: 2269.672 | G35: 115753.272
A36: PP F135 / E125 | B36: 111150 | C36: 1000 | D36: 6650 | E36: 12792.6 | F36: 2325.852 | G36: 118618.452
A37: PP HP OG | B37: 104250 | C37: 0 | D37: 0 | E37: 12885.3 | F37: 2342.706 | G37: 119478.006
A38: PP PS | B38: 100250 | C38: 0 | D38: 0 | E38: 12390.9 | F38: 2252.818 | G38: 114893.718
A39: PP WS | B39: 98250 | C39: 0 | D39: 0 | E39: 12143.7 | F39: 2207.874 | G39: 112601.574
A40: PP CP/RCP | E40: =(B40-C40-D40)*16% -> 0 | G40: =(B40-C40-D40)*16%+(B40-C40-D40) -> 0
A41: PPCP M 311T | B41: 116100 | C41: 1000 | D41: 6550 | E41: =+(B41-C41-D41)*0.1236 -> 13416.78 | F41: =+(B41-C41-D41+E41)*0.02 -> 2439.3356 | G41: =+B41-C41-D41+E41+F41 -> 124406.1156
A42: PPCP M 340 / M365 | B42: 113800 | C42: 1000 | D42: 6600 | E42: 13126.32 | F42: 2386.5264 | G42: 121712.8464
A43: PP CP M 310 | B43: 114500 | C43: 1000 | D43: 6250 | E43: 13256.1 | F43: 2410.122 | G43: 122916.222
A44: PP CP M 312 | B44: 112600 | C44: 1000 | D44: 6200 | E44: 13027.44 | F44: 2368.5488 | G44: 120795.9888
A45: PP CP M 304 / M 325 | B45: 112550 | C45: 1000 | D45: 6400 | E45: 12996.54 | F45: 2362.9308 | G45: 120509.4708
A46: PP CP M 307 / M 315 | B46: 112050 | C46: 1000 | D46: 6400 | E46: 12934.74 | F46: 2351.6948 | G46: 119936.4348
A47: PP RCP B 200 | B47: 112900 | C47: 1000 | D47: 7000 | E47: 12965.64 | F47: 2357.3128 | G47: 120222.9528
A48: PP RCP B202S | B48: 115900 | C48: 1000 | D48: 5000 | E48: 13583.64 | F48: 2469.6728 | G48: 125953.3128
A49: PP RCP M212S | B49: 114100 | C49: 1000 | D49: =+[1]PP!K16 -> 6000 | E49: 13237.56 | F49: 2406.7512 | G49: 122744.3112
A50: LLDPE
A51: FILM 71601D | B51: 111450 | C51: 1000 | D51: 8300 | E51: =+(B51-C51-D51)*0.1236 -> 12625.74 | F51: =+(B51-C51-D51+E51)*0.02 -> 2295.5148 | G51: =+B51-C51-D51+E51+F51 -> 117071.2548
A52: FILM 71501S,71601W | B52: 110900 | C52: 1000 | D52: 8750 | E52: 12502.14 | F52: 2273.0428 | G52: 115925.1828
A53: FILM 71602 S / W | B53: 110900 | C53: 1000 | D53: 8750 | E53: 12502.14 | F53: 2273.0428 | G53: 115925.1828
A54: ROTO 73005 T/73204 T | B54: 108750 | C54: 1000 | D54: 6250 | E54: 12545.4 | F54: 2280.908 | G54: 116326.308
A55: ROTO 73005 TU | B55: 110250 | C55: 1000 | D55: 6250 | E55: 12730.8 | F55: 2314.616 | G55: 118045.416
A56: EC 72307 E | B56: 113950 | C56: 1000 | D56: 7200 | E56: 13070.7 | F56: 2376.414 | G56: 121197.114
A57: LLT - 12 | B57: 113450 | C57: 1000 | D57: 7200 | E57: =+(B57-C57-D57)*0.1236 -> 13008.9 | F57: 2365.178 | G57: 120624.078
A58: OG | B58: 103850 | C58: 0 | D58: 2350 | E58: 12545.4 | F58: 2280.908 | G58: 116326.308
A59: POST SALES QUANTITY DISCOUNT AS APPLICABLE
A60: QTY. MT FOR HD / LL | B60: >= 10 | C60: >=15 | D60: >=30 | E60: >=60 | F60: >= 100 | G60: >= 200 | H60: >= 400
A61: HDPE/LLDPE | B61: 300/- | C61: 300/- | D61: 400/- | E61: 450/- | F61: 550/- | G61: 650/- | H61: 750/-
A62: QTY. MT FOR PP | B62: >=15 | C62: >=30 | D62: >=60 | E62: >=100 | F62: >=200 | G62: >=400
A63: PP | B63: 300/- | C63: 400/- | D63: 450/- | E63: 550/- | F63: 650/- | G63: 750/-
A64: · FOR CREDIT PURCHASE INTREST FREE CREDIT WILL BE 14 DAYS FROM THE DATE OF INVOICE. AN EPI
A65: RS. 70 / MT PER DAY FOR EX-PLANT
A66: · Trade Discount of Rs. 4000 PMT applicable on R103 - to be adjusted pre-exice basis on Ex-plant sales only.
A67: · Trade Discount of Rs. 3000 PMT applicable on R5801 - to be adjusted pre-exice basis on Ex-plant sales only.
A68: · Trade Discount of Rs. 2000 PMT applicable on B5500 - to be adjusted pre-exice basis on Ex-plant sales only.
A69: · NON PRIME GRADE RS.800/MT LESS THAN THE BASIC PRIME GRADE.
A70: · CHEQUE RETURN PENALTY RS.1000/-PER INSTRUMENT.
A71: · UNLOADING & VARAI CHARGES TO BE BORNE BY THE CUSTOMER.
A72: · “C” FORM REQUIRED IN ADVANCE.
A73: · QUANTITY DISCOUNT WOULD NOT BE APPLICABLE ON COMBINATION OF HDPE AND LLDPE GRADES.
A74: · PRICE MAY CHANGE WITHOUT ANY PRIOR NOTICE. PRICE PREVAILING AT THE TIME OF DISPATCH WILL APPLY.
A75: REGARDS
A76: HITESH SHAH - 9820106078
A77: MUKESH SHAH - 9322238059

Sheet BHIWANDI
A1: GANPATI PETROCHEMICALS
A2: Consigment Stockist of : HALDIA PETROCHEMICALS LTD.
A3: 152,Sanjay Bldg. No. 6,Mittal Ind.Estate,Andheri Kurla Road,Marol,Andheri(East),MUMBAI-400 059.
A4: Tel. 28509801 / 28517451 / 32460637 Telefax. 28509802 / E- MAIL ganpetro@vsnl.com
A5: HDPE / PP / LLDPE PRICES EX-HALDIA PETROCHEMICALS LTD. PLANT FOR BHIWANDI
A6: Bhivandi W.H. Add :- Godown No. 20,Thakkar Compound,Valgaon,Anjur Rd,Bhivandi,Dist. Thane. TEL:- 09324038864
A7: HDPE, LLDPE & PP PRICE W.E.F. DT. 19.09.2013
A8: GRADE | B8: BASIC | C8: LESS. | D8: LESS. | E8: ADD E.D | F8: ADD CST | G8: ADD | H8: ADD S.T. | I8: CASH AMT
A9: HDPE | C9: C.D. | D9: LOC.SUB | E9: 0.1236 | F9: 0.02 | G9: TRANSP | H9: 0.0309 | I9: PMT
A10: M 6007L / M 5005L | B10: 106550 | C10: 1000 | D10: 6950 | E10: =+(B10-C10-D10)*0.1236 -> 12186.96 | F10: =+(B10-C10-D10+E10)*0.02 -> 2215.7392 | G10: 3073 | H10: =+G10*0.0309 -> 94.9557 | I10: =+B10-C10-D10+E10+F10+G10+H10 -> 116170.6549
A11: M 6007LU | B11: 108050 | C11: 1000 | D11: 6950 | E11: =+(B11-C11-D11)*0.1236 -> 12372.36 | F11: 2249.4472 | G11: 3073 | H11: 94.9557 | I11: =+B11-C11-D11+E11+F11+G11+H11 -> 117889.7629
A12: M 5002L | B12: 106050 | C12: 1000 | D12: 6950 | E12: 12125.16 | F12: 2204.5032 | G12: 3073 | H12: 94.9557 | I12: =+B12-C12-D12+E12+F12+G12+H12 -> 115597.6189
A13: HD BM B 6401 | B13: 106500 | C13: 1000 | D13: 7000 | E13: 12174.6 | F13: 2213.492 | G13: 3073 | H13: 94.9557 | I13: 116056.0477
A14: HD BM E 5201 | B14: 108000 | C14: 1000 | D14: 7000 | E14: 12360 | F14: 2247.2 | G14: 3073 | H14: 94.9557 | I14: 117775.1557
A15: HD BM E5201S | B15: 107000 | C15: 1000 | D15: 7000 | E15: 12236.4 | F15: 2224.728 | G15: 3073 | H15: 94.9557 | I15: 116629.0837
A16: MBM B 5500 | B16: 110200 | C16: 1000 | D16: 6750 | E16: 12662.82 | F16: 2302.2564 | G16: 3073 | H16: 94.9557 | I16: 120583.0321
A17: HM FILM F 5600/5400 | B17: 106450 | C17: 1000 | D17: 6050 | E17: 12285.84 | F17: 2233.7168 | G17: 3073 | H17: 94.9557 | I17: 117087.5125
A18: RAF/MFIL R5801 | B18: 108850 | C18: 1000 | D18: 6850 | E18: 12483.6 | F18: 2269.672 | G18: 3073 | H18: 94.9557 | I18: 118921.2277
A19: RAF/MFIL HD T9 | B19: 105850 | C19: 1000 | D19: 6850 | E19: 12112.8 | F19: 2202.256 | G19: 3073 | H19: 94.9557 | I19: 115483.0117
A20: HD FILM HDT6 / F5001 | B20: 108350 | C20: 1000 | D20: 7400 | E20: 12353.82 | F20: 2246.0764 | G20: 3073 | H20: 94.9557 | I20: 117717.8521
A21: PIPE P5200UV | B21: 111250 | C21: 1000 | D21: 7200 | E21: 12736.98 | F21: 2315.7396 | G21: 3073 | H21: 94.9557 | I21: 121270.6753
A22: IM M 5018L/M 5025L/M5818 | B22: 104400 | C22: 1000 | D22: 6850 | E22: 11933.58 | F22: 2169.6716 | G22: 3073 | H22: 94.9557 | I22: 113821.2073
A23: RAF HD T10 / HD T10S | B23: 106450 | C23: 1000 | D23: 6750 | E23: 12199.32 | F23: 2217.9864 | G23: 3073 | H23: 94.9557 | I23: 116285.2621
A24: PIPE P 5300 | B24: 111700 | C24: 1000 | D24: 7300 | E24: 12780.24 | F24: 2323.6048 | G24: 3073 | H24: 94.9557 | I24: 121671.8005
A25: PIPE P5200(P.E-63) | B25: 109750 | C25: 1000 | D25: 7200 | E25: 12551.58 | F25: 2282.0316 | G25: 3073 | H25: 94.9557 | I25: 119551.5673
A26: HD T9C | B26: 99850 | C26: 0 | D26: 2250 | E26: 12063.36 | F26: 2193.2672 | G26: 3073 | H26: 94.9557 | I26: 115024.5829
A27: OG | B27: 98850 | C27: 0 | D27: 2200 | E27: 11945.94 | F27: 2171.9188 | G27: 3073 | H27: 94.9557 | I27: 113935.8145
A28: PP
A29: FILM F 110 | B29: 110800 | C29: 1000 | D29: 6400 | E29: =+(B29-C29-D29)*0.1236 -> 12780.24 | F29: =+(B29-C29-D29+E29)*0.02 -> 2323.6048 | G29: 3073 | H29: =+G29*0.0309 -> 94.9557 | I29: =+B29-C29-D29+E29+F29+G29+H29 -> 121671.8005
A30: HPIM M 103 | B30: 110600 | C30: 1000 | D30: 7250 | E30: 12650.46 | F30: 2300.0092 | G30: 3073 | H30: 94.9557 | I30: 120468.4249
A31: HPIM M 110 | B31: 109250 | C31: 1000 | D31: 6450 | E31: 12582.48 | F31: 2287.6496 | G31: 3073 | H31: 94.9557 | I31: 119838.0853
A32: TF T 103 / T 105N | B32: 111350 | C32: 1000 | D32: 6450 | E32: 12842.04 | F32: 2334.8408 | G32: 3073 | H32: 94.9557 | I32: 122244.8365
A33: RAFFIA R 103 | B33: 115150 | C33: 1000 | D33: 7250 | E33: 13212.84 | F33: 2402.2568 | G33: 3073 | H33: 94.9557 | I33: 125683.0525
A34: BOPP F 103 / F 103S | B34: 111550 | C34: 1000 | D34: 6700 | E34: 12835.86 | F34: 2333.7172 | G34: 3073 | H34: 94.9557 | I34: 122187.5329
A35: PP M 108/ M106 | B35: 109150 | C35: 1000 | D35: 6850 | E35: 12520.68 | F35: 2276.4136 | G35: 3073 | H35: 94.9557 | I35: 119265.0493
A36: PP F135 / E125 | B36: 111150 | C36: 1000 | D36: 6650 | E36: 12792.6 | F36: 2325.852 | G36: 3073 | H36: 94.9557 | I36: 121786.4077
A37: PP HP OG | B37: 104250 | C37: 0 | D37: 0 | E37: 12885.3 | F37: 2342.706 | G37: 3073 | H37: 94.9557 | I37: 122645.9617
A38: PP PS | B38: 100250 | C38: 0 | D38: 0 | E38: 12390.9 | F38: 2252.818 | G38: 3073 | H38: 94.9557 | I38: 118061.6737
A39: PP WS | B39: 98250 | C39: 0 | D39: 0 | E39: 12143.7 | F39: 2207.874 | G39: 3073 | H39: 94.9557 | I39: 115769.5297
A40: PP CP/RCP
A41: PPCP M 311T | B41: 116100 | C41: 1000 | D41: 7300 | E41: =+(B41-C41-D41)*0.1236 -> 13324.08 | F41: =+(B41-C41-D41+E41)*0.02 -> 2422.4816 | G41: 3073 | H41: =+G41*0.0309 -> 94.9557 | I41: =+B41-C41-D41+E41+F41+G41+H41 -> 126714.5173
A42: PPCP M 340 / M365 | B42: 113800 | C42: 1000 | D42: 7050 | E42: 13070.7 | F42: 2376.414 | G42: 3073 | H42: 94.9557 | I42: 124365.0697
A43: PP CP M 310 | B43: 114500 | C43: 1000 | D43: 6650 | E43: 13206.66 | F43: 2401.1332 | G43: 3073 | H43: 94.9557 | I43: 125625.7489
A44: PP CP M 312 | B44: 112600 | C44: 1000 | D44: 7400 | E44: 12879.12 | F44: 2341.5824 | G44: 3073 | H44: 94.9557 | I44: 122588.6581
A45: PP CP M 304 / M 325 | B45: 112550 | C45: 1000 | D45: 7350 | E45: 12879.12 | F45: 2341.5824 | G45: 3073 | H45: 94.9557 | I45: 122588.6581
A46: PP CP M 307 / M 315 | B46: 112050 | C46: 1000 | D46: 7350 | E46: 12817.32 | F46: 2330.3464 | G46: 3073 | H46: 94.9557 | I46: 122015.6221
A47: PP RCP B 200 | B47: 112900 | C47: 1000 | D47: 7000 | E47: 12965.64 | F47: 2357.3128 | G47: 3073 | H47: 94.9557 | I47: 123390.9085
A48: PP RCP B202S | B48: 115900 | C48: 1000 | D48: 6000 | E48: 13460.04 | F48: 2447.2008 | G48: 3073 | H48: 94.9557 | I48: 127975.1965
A49: PP RCP M212S | B49: 114100 | C49: 1000 | D49: 7400 | E49: 13064.52 | F49: 2375.2904 | G49: 3073 | H49: 94.9557 | I49: 124307.7661
A50: LLDPE
A51: FILM 71601D | B51: 111450 | C51: 1000 | D51: 8900 | E51: =+(B51-C51-D51)*0.1236 -> 12551.58 | F51: =+(B51-C51-D51+E51)*0.02 -> 2282.0316 | G51: 3073 | H51: =+G51*0.0309 -> 94.9557 | I51: =+B51-C51-D51+E51+F51+G51+H51 -> 119551.5673
A52: FILM 71501S,71601W | B52: 110900 | C52: 1000 | D52: 9350 | E52: 12427.98 | F52: 2259.5596 | G52: 3073 | H52: 94.9557 | I52: 118405.4953
A53: FILM 71602 S / W | B53: 110900 | C53: 1000 | D53: 9350 | E53: 12427.98 | F53: 2259.5596 | G53: 3073 | H53: 94.9557 | I53: 118405.4953
A54: ROTO 73005 T/73204 T | B54: 108750 | C54: 1000 | D54: 6700 | E54: 12489.78 | F54: 2270.7956 | G54: 3073 | H54: 94.9557 | I54: 118978.5313
A55: ROTO 73005 TU | B55: 110250 | C55: 1000 | D55: 6700 | E55: 12675.18 | F55: 2304.5036 | G55: 3073 | H55: 94.9557 | I55: 120697.6393
A56: EC 72307 E | B56: 113950 | C56: 1000 | D56: 7600 | E56: 13021.26 | F56: 2367.4252 | G56: 3073 | H56: 94.9557 | I56: 123906.6409
A57: LLT - 12 | B57: 113450 | C57: 1000 | D57: 7600 | E57: =+(B57-C57-D57)*0.1236 -> 12959.46 | F57: 2356.1892 | G57: 3073 | H57: =+G57*0.0309 -> 94.9557 | I57: 123333.6049
A58: OG | B58: 103850 | C58: 0 | D58: 2350 | E58: 12545.4 | F58: 2280.908 | G58: 3073 | H58: 94.9557 | I58: 119494.2637
A59: POST SALES QUANTITY DISCOUNT AS APPLICABLE
A60: QTY. MT FOR HD / LL | B60: >= 10 | C60: >=15 | D60: >=30 | E60: >=60 | F60: >= 100 | G60: >= 200 | H60: >= 400
A61: HDPE/LLDPE | B61: 300/- | C61: 300/- | D61: 400/- | E61: 450/- | F61: 550/- | G61: 650/- | H61: 750/-
A62: QTY. MT FOR PP | B62: >=15 | C62: >=30 | D62: >=60 | E62: >=100 | F62: >=200 | G62: >=400
A63: PP | B63: 300/- | C63: 400/- | D63: 450/- | E63: 550/- | F63: 650/- | G63: 750/-
A64: · FOR CREDIT PURCHASE INTREST FREE CREDIT WILL BE 14 DAYS FROM THE DATE OF INVOICE. AN EPI
A65: RS. 70 / MT PER DAY FOR EX-PLANT
A66: · Trade Discount of Rs. 4000 PMT applicable on R103 - to be adjusted pre-exice basis on Ex-plant sales only.
A67: · Trade Discount of Rs. 3000 PMT applicable on R5801 - to be adjusted pre-exice basis on Ex-plant sales only.
A68: · Trade Discount of Rs. 2000 PMT applicable on B5500 - to be adjusted pre-exice basis on Ex-plant sales only.
A69: · NON PRIME GRADE RS.800/MT LESS THAN THE BASIC PRIME GRADE.
A70: · CHEQUE RETURN PENALTY RS.1000/-PER INSTRUMENT.
A71: · UNLOADING & VARAI CHARGES TO BE BORNE BY THE CUSTOMER.
A72: · “C” FORM REQUIRED IN ADVANCE.
A73: · QUANTITY DISCOUNT WOULD NOT BE APPLICABLE ON COMBINATION OF HDPE AND LLDPE GRADES.
A74: · PRICE MAY CHANGE WITHOUT ANY PRIOR NOTICE. PRICE PREVAILING AT THE TIME OF DISPATCH WILL APPLY.
A75: REGARDS
A76: HITESH SHAH - 9820106078
A77: MUKESH SHAH - 9322238059

Sheet MAHA(O.V.)
A1: GANPATI PETROCHEMICALS
A2: Consigment Stockist of : HALDIA PETROCHEMICALS LTD.
A3: 152,Sanjay Bldg. No. 6,Mittal Ind.Estate,Andheri Kurla Road,Marol,Andheri(East),MUMBAI-400 059.
A4: Tel. 28509801 / 28517451 / 32460637 Telefax. 28509802 / E- MAIL ganpetro@vsnl.com
A5: HDPE / PP / LLDPE PRICES EX-HALDIA PETROCHEMICALS LTD. PLANT FOR MAHARATRA(O.V.)
A6: Bhivandi W.H. Add :- Godown No. 20,Thakkar Compound,Valgaon,Anjur Rd,Bhivandi,Dist. Thane. TEL:- 09324038864
A7: HDPE, LLDPE & PP PRICE W.E.F. DT. 19.09.2013
A8: GRADE | B8: BASIC | C8: LESS. | D8: LESS. | E8: ADD | F8: ADD CST | G8: CASH AMT
A9: HDPE | C9: C.D. | D9: LOC.SUB | E9: 0.1236 | F9: 0.02 | G9: PMT
A10: M 6007L / M 5005L | B10: 106550 | C10: 1000 | D10: 6950 | E10: =+(B10-C10-D10)*0.1236 -> 12186.96 | F10: =+(B10-C10-D10+E10)*0.02 -> 2215.7392 | G10: =+B10-C10-D10+E10+F10 -> 113002.6992 | I10: TRANS.CHARGES PMT.
A11: M 6007LU | B11: 108050 | C11: 1000 | D11: 6950 | E11: =+(B11-C11-D11)*0.1236 -> 12372.36 | F11: =+(B11-C11-D11+E11)*0.02 -> 2249.4472 | G11: =+B11-C11-D11+E11+F11 -> 114721.8072
A12: M 5002L | B12: 106050 | C12: 1000 | D12: 6950 | E12: 12125.16 | F12: 2204.5032 | G12: 112429.6632
A13: HD BM B 6401 | B13: 106500 | C13: 1000 | D13: 7000 | E13: 12174.6 | F13: 2213.492 | G13: 112888.092 | H13: LOCATIONS | I13: FREIGHT | J13: ADD S.T.
A14: HD BM E 5201 | B14: 108000 | C14: 1000 | D14: 7000 | E14: 12360 | F14: 2247.2 | G14: 114607.2 | H14: **T.D. | I14: RS/MT. | J14: 0.0309
A15: HD BM E5201S | B15: 107000 | C15: 1000 | D15: 7000 | E15: 12236.4 | F15: 2224.728 | G15: 113461.128
A16: MBM B 5500 | B16: 110200 | C16: 1000 | D16: 6750 | E16: 12662.82 | F16: 2302.2564 | G16: 117415.0764
A17: HM FILM F 5600/5400 | B17: 106450 | C17: 1000 | D17: 6050 | E17: 12285.84 | F17: 2233.7168 | G17: 113919.5568 | H17: AHMEDNAGAR-5 | I17: 2979 | J17: =+I17*0.0309 -> 92.0511
A18: RAF/MFIL R5801 | B18: 108850 | C18: 1000 | D18: 6850 | E18: 12483.6 | F18: 2269.672 | G18: 115753.272
A19: RAF/MFIL HD T9 | B19: 105850 | C19: 1000 | D19: 6850 | E19: 12112.8 | F19: 2202.256 | G19: 112315.056 | H19: THANE - 5 | I19: 3172 | J19: =+I19*0.0309 -> 98.0148
A20: HD FILM HDT6 / F5001 | B20: 108350 | C20: 1000 | D20: 7400 | E20: 12353.82 | F20: 2246.0764 | G20: 114549.8964 | H20: ALIBAUGH - 5 | I20: 3566 | J20: =+I20*0.0309 -> 110.1894
A21: PIPE P5200UV | B21: 111250 | C21: 1000 | D21: 7200 | E21: 12736.98 | F21: 2315.7396 | G21: 118102.7196
A22: IM M 5018L/M 5025L/M5818 | B22: 104400 | C22: 1000 | D22: 6850 | E22: 11933.58 | F22: 2169.6716 | G22: 110653.2516 | H22: GRT.MUMBAI -5 | I22: 3228 | J22: =+I22*0.0309 -> 99.7452
A23: RAF HD T10 / HD T10S | B23: 106450 | C23: 1000 | D23: 6750 | E23: 12199.32 | F23: 2217.9864 | G23: 113117.3064 | H23: IGATPURI - 5 | I23: 2872 | J23: =+I23*0.0309 -> 88.7448
A24: PIPE P 5300 | B24: 111700 | C24: 1000 | D24: 7300 | E24: 12780.24 | F24: 2323.6048 | G24: 118503.8448 | H24: KALYAN - 5 | I24: 3074 | J24: =+I24*0.0309 -> 94.9866
A25: PIPE P5200(P.E-63) | B25: 109750 | C25: 1000 | D25: 7200 | E25: 12551.58 | F25: 2282.0316 | G25: 116383.6116 | H25: VASAI | I25: 3173 | J25: =+I25*0.0309 -> 98.0457
A26: HD T9C | B26: 99850 | C26: 0 | D26: 2250 | E26: 12063.36 | F26: 2193.2672 | G26: 111856.6272 | H26: KHOPOLI - 5 | I26: 3492 | J26: =+I26*0.0309 -> 107.9028
A27: OG | B27: 98850 | C27: 0 | D27: 2200 | E27: 11945.94 | F27: 2171.9188 | G27: 110767.8588 | H27: BHIWANDI - 5 | I27: 3073 | J27: 94.9557
A28: PP | H28: LONAVALA - 6 | I28: 3240 | J28: 100.116
A29: FILM F 110 | B29: 110800 | C29: 1000 | D29: 6400 | E29: =+(B29-C29-D29)*0.1236 -> 12780.24 | F29: =+(B29-C29-D29+E29)*0.02 -> 2323.6048 | G29: 118503.8448 | H29: MURBAD - 5 | I29: 3170 | J29: 97.953
A30: HPIM M 103 | B30: 110600 | C30: 1000 | D30: 7250 | E30: 12650.46 | F30: 2300.0092 | G30: 117300.4692 | H30: PUNE - 5 | I30: 3149 | J30: 97.3041
A31: HPIM M 110 | B31: 109250 | C31: 1000 | D31: 6450 | E31: 12582.48 | F31: 2287.6496 | G31: 116670.1296 | H31: NAGHOTHANE-5 | I31: 3286 | J31: 101.5374
A32: TF T 103 / T 105N | B32: 111350 | C32: 1000 | D32: 6450 | E32: 12842.04 | F32: 2334.8408 | G32: 119076.8808 | H32: NASIK - 5 | I32: 2842 | J32: 87.8178
A33: RAFFIA R 103 | B33: 115150 | C33: 1000 | D33: 7250 | E33: 13212.84 | F33: 2402.2568 | G33: 122515.0968 | H33: SINNAR-5 | I33: 2866 | J33: 88.5594
A34: BOPP F 103 / F 103S | B34: 111550 | C34: 1000 | D34: 6700 | E34: 12835.86 | F34: 2333.7172 | G34: 119019.5772 | H34: MALEGAON-5 | I34: 3094 | J34: 95.6046
A35: PP M 108/ M106 | B35: 109150 | C35: 1000 | D35: 6850 | E35: 12520.68 | F35: 2276.4136 | G35: 116097.0936
A36: PP F135 / E125 | B36: 111150 | C36: 1000 | D36: 6650 | E36: 12792.6 | F36: 2325.852 | G36: 118618.452
A37: PP HP OG | B37: 104250 | C37: 0 | D37: 0 | E37: 12885.3 | F37: 2342.706 | G37: 119478.006 | H37: NEW BOMBAY- 5 | I37: 3228 | J37: =+I37*0.0309 -> 99.7452
A38: PP PS | B38: 100250 | C38: 0 | D38: 0 | E38: 12390.9 | F38: 2252.818 | G38: 114893.718 | H38: PALGHAR - 5 | I38: 3278 | J38: =+I38*0.0309 -> 101.2902
A39: PP WS | B39: 98250 | C39: 0 | D39: 0 | E39: 12143.7 | F39: 2207.874 | G39: 112601.574 | H39: DHULIA - 5 | I39: 2806 | J39: =+I39*0.0309 -> 86.7054
A40: PP CP/RCP | E40: =(B40-C40-D40)*16% -> 0 | G40: =(B40-C40-D40)*16%+(B40-C40-D40) -> 0 | H40: *T.D.=TRANSIT DAYS
A41: PPCP M 311T | B41: 116100 | C41: 1000 | D41: 7300 | E41: =+(B41-C41-D41)*0.1236 -> 13324.08 | F41: =+(B41-C41-D41+E41)*0.02 -> 2422.4816 | G41: 123546.5616
A42: PPCP M 340 / M365 | B42: 113800 | C42: 1000 | D42: 7050 | E42: 13070.7 | F42: 2376.414 | G42: 121197.114
A43: PP CP M 310 | B43: 114500 | C43: 1000 | D43: 6650 | E43: 13206.66 | F43: 2401.1332 | G43: 122457.7932
A44: PP CP M 312 | B44: 112600 | C44: 1000 | D44: 7400 | E44: 12879.12 | F44: 2341.5824 | G44: 119420.7024
A45: PP CP M 304 / M 325 | B45: 112550 | C45: 1000 | D45: 7350 | E45: 12879.12 | F45: 2341.5824 | G45: 119420.7024
A46: PP CP M 307 / M 315 | B46: 112050 | C46: 1000 | D46: 7350 | E46: 12817.32 | F46: 2330.3464 | G46: 118847.6664
A47: PP RCP B 200 | B47: 112900 | C47: 1000 | D47: 7000 | E47: 12965.64 | F47: 2357.3128 | G47: 120222.9528
A48: PP RCP B202S | B48: 115900 | C48: 1000 | D48: 6000 | E48: 13460.04 | F48: 2447.2008 | G48: 124807.2408
A49: PP RCP M212S | B49: 114100 | C49: 1000 | D49: 7400 | E49: 13064.52 | F49: 2375.2904 | G49: 121139.8104
A50: LLDPE
A51: FILM 71601D | B51: 111450 | C51: 1000 | D51: 8900 | E51: =+(B51-C51-D51)*0.1236 -> 12551.58 | F51: =+(B51-C51-D51+E51)*0.02 -> 2282.0316 | G51: 116383.6116
A52: FILM 71501S,71601W | B52: 110900 | C52: 1000 | D52: 9350 | E52: 12427.98 | F52: 2259.5596 | G52: 115237.5396
A53: FILM 71602 S / W | B53: 110900 | C53: 1000 | D53: 9350 | E53: 12427.98 | F53: 2259.5596 | G53: 115237.5396
A54: ROTO 73005 T/73204 T | B54: 108750 | C54: 1000 | D54: 6700 | E54: 12489.78 | F54: 2270.7956 | G54: 115810.5756
A55: ROTO 73005 TU | B55: 110250 | C55: 1000 | D55: 6700 | E55: 12675.18 | F55: 2304.5036 | G55: 117529.6836
A56: EC 72307 E | B56: 113950 | C56: 1000 | D56: 7600 | E56: 13021.26 | F56: 2367.4252 | G56: 120738.6852
A57: LLT - 12 | B57: 113450 | C57: 1000 | D57: 7600 | E57: =+(B57-C57-D57)*0.1236 -> 12959.46 | F57: 2356.1892 | G57: 120165.6492
A58: OG | B58: 103850 | C58: 0 | D58: 2350 | E58: 12545.4 | F58: 2280.908 | G58: 116326.308
A59: POST SALES QUANTITY DISCOUNT AS APPLICABLE
A60: QTY. MT FOR HD / LL | B60: >= 10 | C60: >=15 | D60: >=30 | E60: >=60 | F60: >= 100 | G60: >= 200 | H60: >= 400
A61: HDPE/LLDPE | B61: 300/- | C61: 300/- | D61: 400/- | E61: 450/- | F61: 550/- | G61: 650/- | H61: 750/-
A62: QTY. MT FOR PP | B62: >=15 | C62: >=30 | D62: >=60 | E62: >=100 | F62: >=200 | G62: >=400
A63: PP | B63: 300/- | C63: 400/- | D63: 450/- | E63: 550/- | F63: 650/- | G63: 750/-
A64: · FOR CREDIT PURCHASE INTREST FREE CREDIT WILL BE 14 DAYS FROM THE DATE OF INVOICE. AN EPI
A65: RS. 70 / MT PER DAY FOR EX-PLANT
A66: · Trade Discount of Rs. 4000 PMT applicable on R103 - to be adjusted pre-exice basis on Ex-plant sales only.
A67: · Trade Discount of Rs. 3000 PMT applicable on R5801 - to be adjusted pre-exice basis on Ex-plant sales only.
A68: · Trade Discount of Rs. 2000 PMT applicable on B5500 - to be adjusted pre-exice basis on Ex-plant sales only.
A69: · NON PRIME GRADE RS.800/MT LESS THAN THE BASIC PRIME GRADE.
A70: · CHEQUE RETURN PENALTY RS.1000/-PER INSTRUMENT.
A71: · UNLOADING & VARAI CHARGES TO BE BORNE BY THE CUSTOMER.
A72: · “C” FORM REQUIRED IN ADVANCE.
A73: · QUANTITY DISCOUNT WOULD NOT BE APPLICABLE ON COMBINATION OF HDPE AND LLDPE GRADES.
A74: · PRICE MAY CHANGE WITHOUT ANY PRIOR NOTICE. PRICE PREVAILING AT THE TIME OF DISPATCH WILL APPLY.
A75: REGARDS
A76: HITESH SHAH - 9820106078
A77: MUKESH SHAH - 9322238059

Sheet MAHA(VIDH)
A1: GANPATI PETROCHEMICALS
A2: Consigment Stockist of : HALDIA PETROCHEMICALS LTD.
A3: 152,Sanjay Bldg. No. 6,Mittal Ind.Estate,Andheri Kurla Road,Marol,Andheri(East),MUMBAI-400 059.
A4: Tel. 28509801 / 28517451 / 32460637 Telefax. 28509802 / E- MAIL ganpetro@vsnl.com
A5: HDPE / PP / LLDPE PRICES EX-HALDIA PETROCHEMICALS LTD. PLANT FOR MAHARASTRA(vidharbh)
A6: Bhivandi W.H. Add :- Godown No. 20,Thakkar Compound,Valgaon,Anjur Rd,Bhivandi,Dist. Thane. TEL:- 09324038864
A7: HDPE, LLDPE & PP PRICE W.E.F. DT. 19.09.2013
A8: GRADE | B8: BASIC | C8: LESS. | D8: LESS. | E8: ADD | F8: ADD CST | G8: CASH AMT
A9: HDPE | C9: C.D. | D9: LOC.SUB | E9: 0.1236 | F9: 0.02 | G9: PMT
A10: M 6007L / M 5005L | B10: 106550 | C10: 1000 | D10: 4350 | E10: =+(B10-C10-D10)*0.1236 -> 12508.32 | F10: =+(B10-C10-D10+E10)*0.02 -> 2274.1664 | G10: =+B10-C10-D10+E10+F10 -> 115982.4864 | I10: TRANS.CHARGES PMT.
A11: M 6007LU | B11: 108050 | C11: 1000 | D11: 4350 | E11: =+(B11-C11-D11)*0.1236 -> 12693.72 | F11: =+(B11-C11-D11+E11)*0.02 -> 2307.8744 | G11: =+B11-C11-D11+E11+F11 -> 117701.5944
A12: M 5002L | B12: 106050 | C12: 1000 | D12: 4350 | E12: 12446.52 | F12: 2262.9304 | G12: 115409.4504
A13: HD BM B 6401 | B13: 106500 | C13: 1000 | D13: 4350 | E13: 12502.14 | F13: 2273.0428 | G13: 115925.1828 | H13: LOCATIONS | I13: FREIGHT | J13: ADD S.T.
A14: HD BM E 5201 | B14: 108000 | C14: 1000 | D14: 4350 | E14: 12687.54 | F14: 2306.7508 | G14: 117644.2908 | H14: **T.D. | I14: RS/MT. | J14: 0.0309
A15: HD BM E5201S | B15: 107000 | C15: 1000 | D15: 4350 | E15: 12563.94 | F15: 2284.2788 | G15: 116498.2188
A16: MBM B 5500 | B16: 110200 | C16: 1000 | D16: 4100 | E16: 12990.36 | F16: 2361.8072 | G16: 120452.1672
A17: HM FILM F 5600/5400 | B17: 106450 | C17: 1000 | D17: 3750 | E17: 12570.12 | F17: 2285.4024 | G17: 116555.5224 | H17: NAGPUR-3 | I17: 2003 | J17: =+I17*0.0309 -> 61.8927
A18: RAF/MFIL R5801 | B18: 108850 | C18: 1000 | D18: 4200 | E18: 12811.14 | F18: 2329.2228 | G18: 118790.3628
A19: RAF/MFIL HD T9 | B19: 105850 | C19: 1000 | D19: 4200 | E19: 12440.34 | F19: 2261.8068 | G19: 115352.1468 | H19: AMRAVATI-4 | I19: 2561 | J19: =+I19*0.0309 -> 79.1349
A20: HD FILM HDT6 / F5001 | B20: 108350 | C20: 1000 | D20: 4900 | E20: 12662.82 | F20: 2302.2564 | G20: 117415.0764
A21: PIPE P5200UV | B21: 111250 | C21: 1000 | D21: 4550 | E21: 13064.52 | F21: 2375.2904 | G21: 121139.8104 | H21: WARDHA-3 | I21: 2136 | J21: =+I21*0.0309 -> 66.0024
A22: IM M 5018L/M 5025L/M5818 | B22: 104400 | C22: 1000 | D22: 4500 | E22: 12224.04 | F22: 2222.4808 | G22: 113346.5208
A23: RAF HD T10 / HD T10S | B23: 106450 | C23: 1000 | D23: 4350 | E23: 12495.96 | F23: 2271.9192 | G23: 115867.8792
A24: PIPE P 5300 | B24: 111700 | C24: 1000 | D24: 4650 | E24: 13107.78 | F24: 2383.1556 | G24: 121540.9356
A25: PIPE P5200(P.E-63) | B25: 109750 | C25: 1000 | D25: 4550 | E25: 12879.12 | F25: 2341.5824 | G25: 119420.7024
A26: HD T9C | B26: 99850 | C26: 0 | D26: 2250 | E26: 12063.36 | F26: 2193.2672 | G26: 111856.6272
A27: OG | B27: 98850 | C27: 0 | D27: 2200 | E27: 11945.94 | F27: 2171.9188 | G27: 110767.8588
A28: PP
A29: FILM F 110 | B29: 110800 | C29: 1000 | D29: 3150 | E29: =+(B29-C29-D29)*0.1236 -> 13181.94 | F29: =+(B29-C29-D29+E29)*0.02 -> 2396.6388 | G29: 122228.5788 | H29: *T.D.=TRANSIT DAYS
A30: HPIM M 103 | B30: 110600 | C30: 1000 | D30: 4600 | E30: 12978 | F30: 2359.56 | G30: 120337.56
A31: HPIM M 110 | B31: 109250 | C31: 1000 | D31: 3000 | E31: 13008.9 | F31: 2365.178 | G31: 120624.078
A32: TF T 103 / T 105N | B32: 111350 | C32: 1000 | D32: 3500 | E32: 13206.66 | F32: 2401.1332 | G32: 122457.7932
A33: RAFFIA R 103 | B33: 115150 | C33: 1000 | D33: 4600 | E33: 13540.38 | F33: 2461.8076 | G33: 125552.1876
A34: BOPP F 103 / F 103S | B34: 111550 | C34: 1000 | D34: 4050 | E34: 13163.4 | F34: 2393.268 | G34: 122056.668
A35: PP M 108/ M106 | B35: 109150 | C35: 1000 | D35: 3400 | E35: 12947.1 | F35: 2353.942 | G35: 120051.042
A36: PP F135 / E125 | B36: 111150 | C36: 1000 | D36: 4000 | E36: 13120.14 | F36: 2385.4028 | G36: 121655.5428
A37: PP HP OG | B37: 104250 | C37: 0 | D37: 0 | E37: 12885.3 | F37: 2342.706 | G37: 119478.006
A38: PP PS | B38: 100250 | C38: 0 | D38: 0 | E38: 12390.9 | F38: 2252.818 | G38: 114893.718
A39: PP WS | B39: 98250 | C39: 0 | D39: 0 | E39: 12143.7 | F39: 2207.874 | G39: 112601.574
A40: PP CP/RCP | E40: =(B40-C40-D40)*16% -> 0 | G40: =(B40-C40-D40)*16%+(B40-C40-D40) -> 0
A41: PPCP M 311T | B41: 116100 | C41: 1000 | D41: 4650 | E41: =+(B41-C41-D41)*0.1236 -> 13651.62 | F41: =+(B41-C41-D41+E41)*0.02 -> 2482.0324 | G41: 126583.6524
A42: PPCP M 340 / M365 | B42: 113800 | C42: 1000 | D42: 4400 | E42: 13398.24 | F42: 2435.9648 | G42: 124234.2048
A43: PP CP M 310 | B43: 114500 | C43: 1000 | D43: 4050 | E43: 13528.02 | F43: 2459.5604 | G43: 125437.5804
A44: PP CP M 312 | B44: 112600 | C44: 1000 | D44: 4750 | E44: 13206.66 | F44: 2401.1332 | G44: 122457.7932
A45: PP CP M 304 / M 325 | B45: 112550 | C45: 1000 | D45: 4700 | E45: 13206.66 | F45: 2401.1332 | G45: 122457.7932
A46: PP CP M 307 / M 315 | B46: 112050 | C46: 1000 | D46: 4700 | E46: 13144.86 | F46: 2389.8972 | G46: 121884.7572
A47: PP RCP B 200 | B47: 112900 | C47: 1000 | D47: 4300 | E47: 13299.36 | F47: 2417.9872 | G47: 123317.3472
A48: PP RCP B202S | B48: 115900 | C48: 1000 | D48: 3400 | E48: 13781.4 | F48: 2505.628 | G48: 127787.028
A49: PP RCP M212S | B49: 114100 | C49: 1000 | D49: 4800 | E49: 13385.88 | F49: 2433.7176 | G49: 124119.5976
A50: LLDPE
A51: FILM 71601D | B51: 111450 | C51: 1000 | D51: 6300 | E51: =+(B51-C51-D51)*0.1236 -> 12872.94 | F51: =+(B51-C51-D51+E51)*0.02 -> 2340.4588 | G51: 119363.3988
A52: FILM 71501S,71601W | B52: 110900 | C52: 1000 | D52: 6750 | E52: 12749.34 | F52: 2317.9868 | G52: 118217.3268
A53: FILM 71602 S / W | B53: 110900 | C53: 1000 | D53: 6750 | E53: 12749.34 | F53: 2317.9868 | G53: 118217.3268
A54: ROTO 73005 T/73204 T | B54: 108750 | C54: 1000 | D54: 4050 | E54: 12817.32 | F54: 2330.3464 | G54: 118847.6664
A55: ROTO 73005 TU | B55: 110250 | C55: 1000 | D55: 4050 | E55: 13002.72 | F55: 2364.0544 | G55: 120566.7744
A56: EC 72307 E | B56: 113950 | C56: 1000 | D56: 5000 | E56: 13342.62 | F56: 2425.8524 | G56: 123718.4724
A57: LLT - 12 | B57: 113450 | C57: 1000 | D57: 5000 | E57: =+(B57-C57-D57)*0.1236 -> 13280.82 | F57: 2414.6164 | G57: 123145.4364
A58: OG | B58: 103850 | C58: 0 | D58: 2350 | E58: 12545.4 | F58: 2280.908 | G58: 116326.308
A59: POST SALES QUANTITY DISCOUNT AS APPLICABLE
A60: QTY. MT FOR HD / LL | B60: >= 10 | C60: >=15 | D60: >=30 | E60: >=60 | F60: >= 100 | G60: >= 200 | H60: >= 400
A61: HDPE/LLDPE | B61: 300/- | C61: 300/- | D61: 400/- | E61: 450/- | F61: 550/- | G61: 650/- | H61: 750/-
A62: QTY. MT FOR PP | B62: >=15 | C62: >=30 | D62: >=60 | E62: >=100 | F62: >=200 | G62: >=400
A63: PP | B63: 300/- | C63: 400/- | D63: 450/- | E63: 550/- | F63: 650/- | G63: 750/-
A64: · FOR CREDIT PURCHASE INTREST FREE CREDIT WILL BE 14 DAYS FROM THE DATE OF INVOICE. AN EPI
A65: RS. 70 / MT PER DAY FOR EX-PLANT
A66: · Trade Discount of Rs. 4000 PMT applicable on R103 - to be adjusted pre-exice basis on Ex-plant sales only.
A67: · Trade Discount of Rs. 3000 PMT applicable on R5801 - to be adjusted pre-exice basis on Ex-plant sales only.
A68: · Trade Discount of Rs. 2000 PMT applicable on B5500 - to be adjusted pre-exice basis on Ex-plant sales only.
A69: · NON PRIME GRADE RS.800/MT LESS THAN THE BASIC PRIME GRADE.
A70: · CHEQUE RETURN PENALTY RS.1000/-PER INSTRUMENT.
A71: · UNLOADING & VARAI CHARGES TO BE BORNE BY THE CUSTOMER.
A72: · “C” FORM REQUIRED IN ADVANCE.
A73: · QUANTITY DISCOUNT WOULD NOT BE APPLICABLE ON COMBINATION OF HDPE AND LLDPE GRADES.
A74: · PRICE MAY CHANGE WITHOUT ANY PRIOR NOTICE. PRICE PREVAILING AT THE TIME OF DISPATCH WILL APPLY.
A75: REGARDS
A76: HITESH SHAH - 9820106078
A77: MUKESH SHAH - 9322238059

Sheet MAHA(KHAN)
A1: GANPATI PETROCHEMICALS
A2: Consigment Stockist of : HALDIA PETROCHEMICALS LTD.
A3: 152,Sanjay Bldg. No. 6,Mittal Ind.Estate,Andheri Kurla Road,Marol,Andheri(East),MUMBAI-400 059.
A4: Tel. 28509801 / 28517451 / 32460637 Telefax. 28509802 / E- MAIL ganpetro@vsnl.com
A5: HDPE / PP / LLDPE PRICES EX-HALDIA PETROCHEMICALS LTD. PLANT FOR MAHARASTRA(khandesh)
A6: Bhivandi W.H. Add :- Godown No. 20,Thakkar Compound,Valgaon,Anjur Rd,Bhivandi,Dist. Thane. TEL:- 09324038864
A7: HDPE, LLDPE & PP PRICE W.E.F. DT. 19.09.2013
A8: GRADE | B8: BASIC | C8: LESS. | D8: LESS. | E8: ADD | F8: ADD CST | G8: CASH AMT
A9: HDPE | C9: C.D. | D9: LOC.SUB | E9: 0.1236 | F9: 0.02 | G9: PMT
A10: M 6007L / M 5005L | B10: 106550 | C10: 1000 | D10: 5850 | E10: =+(B10-C10-D10)*0.1236 -> 12322.92 | F10: =+(B10-C10-D10+E10)*0.02 -> 2240.4584 | G10: =+B10-C10-D10+E10+F10 -> 114263.3784 | I10: TRANS.CHARGES PMT.
A11: M 6007LU | B11: 108050 | C11: 1000 | D11: 5850 | E11: =+(B11-C11-D11)*0.1236 -> 12508.32 | F11: =+(B11-C11-D11+E11)*0.02 -> 2274.1664 | G11: =+B11-C11-D11+E11+F11 -> 115982.4864
A12: M 5002L | B12: 106050 | C12: 1000 | D12: 5850 | E12: 12261.12 | F12: 2229.2224 | G12: 113690.3424
A13: HD BM B 6401 | B13: 106500 | C13: 1000 | D13: 5850 | E13: 12316.74 | F13: 2239.3348 | G13: 114206.0748 | H13: LOCATIONS | I13: FREIGHT | J13: ADD S.T.
A14: HD BM E 5201 | B14: 108000 | C14: 1000 | D14: 5850 | E14: 12502.14 | F14: 2273.0428 | G14: 115925.1828 | H14: **T.D. | I14: RS/MT. | J14: 0.0309
A15: HD BM E5201S | B15: 107000 | C15: 1000 | D15: 5850 | E15: 12378.54 | F15: 2250.5708 | G15: 114779.1108
A16: MBM B 5500 | B16: 110200 | C16: 1000 | D16: 5600 | E16: 12804.96 | F16: 2328.0992 | G16: 118733.0592
A17: HM FILM F 5600/5400 | B17: 106450 | C17: 1000 | D17: 4900 | E17: 12427.98 | F17: 2259.5596 | G17: 115237.5396 | H17: AURANGABAD-4 | I17: 2802 | J17: =+I17*0.0309 -> 86.5818
A18: RAF/MFIL R5801 | B18: 108850 | C18: 1000 | D18: 5700 | E18: 12625.74 | F18: 2295.5148 | G18: 117071.2548
A19: RAF/MFIL HD T9 | B19: 105850 | C19: 1000 | D19: 5700 | E19: 12254.94 | F19: 2228.0988 | G19: 113633.0388 | H19: JALNA-4 | I19: 2833 | J19: =+I19*0.0309 -> 87.5397
A20: HD FILM HDT6 / F5001 | B20: 108350 | C20: 1000 | D20: 6350 | E20: 12483.6 | F20: 2269.672 | G20: 115753.272 | H20: JALGAON-4 | I20: 2583 | J20: =+I20*0.0309 -> 79.8147
A21: PIPE P5200UV | B21: 111250 | C21: 1000 | D21: 6100 | E21: 12872.94 | F21: 2340.4588 | G21: 119363.3988 | H21: LATUR-5 | I21: 2918 | J21: =+I21*0.0309 -> 90.1662
A22: IM M 5018L/M 5025L/M5818 | B22: 104400 | C22: 1000 | D22: 5800 | E22: 12063.36 | F22: 2193.2672 | G22: 111856.6272
A23: RAF HD T10 / HD T10S | B23: 106450 | C23: 1000 | D23: 5700 | E23: 12329.1 | F23: 2241.582 | G23: 114320.682 | H23: NANDED-4 | I23: 2982 | J23: =+I23*0.0309 -> 92.1438
A24: PIPE P 5300 | B24: 111700 | C24: 1000 | D24: 6150 | E24: 12922.38 | F24: 2349.4476 | G24: 119821.8276
A25: PIPE P5200(P.E-63) | B25: 109750 | C25: 1000 | D25: 6100 | E25: 12687.54 | F25: 2306.7508 | G25: 117644.2908 | H25: CHALISGAON | I25: 2624 | J25: =+I25*0.0309 -> 81.0816
A26: HD T9C | B26: 99850 | C26: 0 | D26: 2250 | E26: 12063.36 | F26: 2193.2672 | G26: 111856.6272
A27: OG | B27: 98850 | C27: 0 | D27: 2200 | E27: 11945.94 | F27: 2171.9188 | G27: 110767.8588
A28: PP
A29: FILM F 110 | B29: 110800 | C29: 1000 | D29: 5300 | E29: =+(B29-C29-D29)*0.1236 -> 12916.2 | F29: =+(B29-C29-D29+E29)*0.02 -> 2348.324 | G29: =+B29-C29-D29+E29+F29 -> 119764.524 | H29: *T.D.=TRANSIT DAYS
A30: HPIM M 103 | B30: 110600 | C30: 1000 | D30: 6100 | E30: 12792.6 | F30: 2325.852 | G30: 118618.452
A31: HPIM M 110 | B31: 109250 | C31: 1000 | D31: 4500 | E31: 12823.5 | F31: 2331.47 | G31: 118904.97
A32: TF T 103 / T 105N | B32: 111350 | C32: 1000 | D32: 5300 | E32: 12984.18 | F32: 2360.6836 | G32: 120394.8636
A33: RAFFIA R 103 | B33: 115150 | C33: 1000 | D33: 6100 | E33: 13354.98 | F33: 2428.0996 | G33: 123833.0796
A34: BOPP F 103 / F 103S | B34: 111550 | C34: 1000 | D34: 5500 | E34: 12984.18 | F34: 2360.6836 | G34: 120394.8636
A35: PP M 108/ M106 | B35: 109150 | C35: 1000 | D35: 4900 | E35: 12761.7 | F35: 2320.234 | G35: 118331.934
A36: PP F135 / E125 | B36: 111150 | C36: 1000 | D36: 5500 | E36: 12934.74 | F36: 2351.6948 | G36: 119936.4348
A37: PP HP OG | B37: 104250 | C37: 0 | D37: 0 | E37: 12885.3 | F37: 2342.706 | G37: 119478.006
A38: PP PS | B38: 100250 | C38: 0 | D38: 0 | E38: 12390.9 | F38: 2252.818 | G38: 114893.718
A39: PP WS | B39: 98250 | C39: 0 | D39: 0 | E39: 12143.7 | F39: 2207.874 | G39: 112601.574
A40: PP CP/RCP | E40: =(B40-C40-D40)*16% -> 0 | G40: =(B40-C40-D40)*16%+(B40-C40-D40) -> 0
A41: PPCP M 311T | B41: 116100 | C41: 1000 | D41: 6150 | E41: =+(B41-C41-D41)*0.1236 -> 13466.22 | F41: =+(B41-C41-D41+E41)*0.02 -> 2448.3244 | G41: =+B41-C41-D41+E41+F41 -> 124864.5444
A42: PPCP M 340 / M365 | B42: 113800 | C42: 1000 | D42: 5900 | E42: 13212.84 | F42: 2402.2568 | G42: 122515.0968
A43: PP CP M 310 | B43: 114500 | C43: 1000 | D43: 5550 | E43: 13342.62 | F43: 2425.8524 | G43: 123718.4724
A44: PP CP M 312 | B44: 112600 | C44: 1000 | D44: 6250 | E44: 13021.26 | F44: 2367.4252 | G44: 120738.6852
A45: PP CP M 304 / M 325 | B45: 112550 | C45: 1000 | D45: 6200 | E45: 13021.26 | F45: 2367.4252 | G45: 120738.6852
A46: PP CP M 307 / M 315 | B46: 112050 | C46: 1000 | D46: 6200 | E46: 12959.46 | F46: 2356.1892 | G46: 120165.6492
A47: PP RCP B 200 | B47: 112900 | C47: 1000 | D47: 5800 | E47: 13113.96 | F47: 2384.2792 | G47: 121598.2392
A48: PP RCP B202S | B48: 115900 | C48: 1000 | D48: 4900 | E48: 13596 | F48: 2471.92 | G48: 126067.92
A49: PP RCP M212S | B49: 114100 | C49: 1000 | D49: 6300 | E49: 13200.48 | F49: 2400.0096 | G49: 122400.4896
A50: LLDPE
A51: FILM 71601D | B51: 111450 | C51: 1000 | D51: 7750 | E51: =+(B51-C51-D51)*0.1236 -> 12693.72 | F51: =+(B51-C51-D51+E51)*0.02 -> 2307.8744 | G51: =+B51-C51-D51+E51+F51 -> 117701.5944
A52: FILM 71501S,71601W | B52: 110900 | C52: 1000 | D52: 8200 | E52: 12570.12 | F52: 2285.4024 | G52: 116555.5224
A53: FILM 71602 S / W | B53: 110900 | C53: 1000 | D53: 8200 | E53: 12570.12 | F53: 2285.4024 | G53: 116555.5224
A54: ROTO 73005 T/73204 T | B54: 108750 | C54: 1000 | D54: 5550 | E54: 12631.92 | F54: 2296.6384 | G54: 117128.5584
A55: ROTO 73005 TU | B55: 110250 | C55: 1000 | D55: 5550 | E55: 12817.32 | F55: 2330.3464 | G55: 118847.6664
A56: EC 72307 E | B56: 113950 | C56: 1000 | D56: 6500 | E56: 13157.22 | F56: 2392.1444 | G56: 121999.3644
A57: LLT - 12 | B57: 113450 | C57: 1000 | D57: 6500 | E57: =+(B57-C57-D57)*0.1236 -> 13095.42 | F57: 2380.9084 | G57: 121426.3284
A58: OG | B58: 103850 | C58: 0 | D58: 2350 | E58: 12545.4 | F58: 2280.908 | G58: 116326.308
A59: POST SALES QUANTITY DISCOUNT AS APPLICABLE
A60: QTY. MT FOR HD / LL | B60: >= 10 | C60: >=15 | D60: >=30 | E60: >=60 | F60: >= 100 | G60: >= 200 | H60: >= 400
A61: HDPE/LLDPE | B61: 300/- | C61: 300/- | D61: 400/- | E61: 450/- | F61: 550/- | G61: 650/- | H61: 750/-
A62: QTY. MT FOR PP | B62: >=15 | C62: >=30 | D62: >=60 | E62: >=100 | F62: >=200 | G62: >=400
A63: PP | B63: 300/- | C63: 400/- | D63: 450/- | E63: 550/- | F63: 650/- | G63: 750/-
A64: · FOR CREDIT PURCHASE INTREST FREE CREDIT WILL BE 14 DAYS FROM THE DATE OF INVOICE. AN EPI
A65: RS. 70 / MT PER DAY FOR EX-PLANT
A66: · Trade Discount of Rs. 4000 PMT applicable on R103 - to be adjusted pre-exice basis on Ex-plant sales only.
A67: · Trade Discount of Rs. 3000 PMT applicable on R5801 - to be adjusted pre-exice basis on Ex-plant sales only.
A68: · Trade Discount of Rs. 2000 PMT applicable on B5500 - to be adjusted pre-exice basis on Ex-plant sales only.
A69: · NON PRIME GRADE RS.800/MT LESS THAN THE BASIC PRIME GRADE.
A70: · CHEQUE RETURN PENALTY RS.1000/-PER INSTRUMENT.
A71: · UNLOADING & VARAI CHARGES TO BE BORNE BY THE CUSTOMER.
A72: · “C” FORM REQUIRED IN ADVANCE.
A73: · QUANTITY DISCOUNT WOULD NOT BE APPLICABLE ON COMBINATION OF HDPE AND LLDPE GRADES.
A74: · PRICE MAY CHANGE WITHOUT ANY PRIOR NOTICE. PRICE PREVAILING AT THE TIME OF DISPATCH WILL APPLY.
A75: REGARDS
A76: HITESH SHAH - 9820106078
A77: MUKESH SHAH - 9322238059

Sheet MAHA(SOUTH)
A1: GANPATI PETROCHEMICALS
A2: Consigment Stockist of : HALDIA PETROCHEMICALS LTD.
A3: 152,Sanjay Bldg. No. 6,Mittal Ind.Estate,Andheri Kurla Road,Marol,Andheri(East),MUMBAI-400 059.
A4: Tel. 28509801 / 28517451 / 32460637 Telefax. 28509802 / E- MAIL ganpetro@vsnl.com
A5: HDPE / PP / LLDPE PRICES EX-HALDIA PETROCHEMICALS LTD. PLANT FOR MAHARASTRA(SOUTH)
A6: Bhivandi W.H. Add :- Godown No. 20,Thakkar Compound,Valgaon,Anjur Rd,Bhivandi,Dist. Thane. TEL:- 09324038864
A7: HDPE, LLDPE & PP PRICE W.E.F. DT. 19.09.2013
A8: GRADE | B8: BASIC | C8: LESS. | D8: LESS. | E8: ADD | F8: ADD CST | G8: CASH AMT
A9: HDPE | C9: C.D. | D9: LOC.SUB | E9: 0.1236 | F9: 0.02 | G9: PMT
A10: M 6007L / M 5005L | B10: 106550 | C10: 1000 | D10: 6650 | E10: =+(B10-C10-D10)*0.1236 -> 12224.04 | F10: =+(B10-C10-D10+E10)*0.02 -> 2222.4808 | G10: =+B10-C10-D10+E10+F10 -> 113346.5208 | I10: TRANS.CHARGES PMT.
A11: M 6007LU | B11: 108050 | C11: 1000 | D11: 6650 | E11: =+(B11-C11-D11)*0.1236 -> 12409.44 | F11: =+(B11-C11-D11+E11)*0.02 -> 2256.1888 | G11: =+B11-C11-D11+E11+F11 -> 115065.6288
A12: M 5002L | B12: 106050 | C12: 1000 | D12: 6650 | E12: 12162.24 | F12: 2211.2448 | G12: 112773.4848
A13: HD BM B 6401 | B13: 106500 | C13: 1000 | D13: 6700 | E13: 12211.68 | F13: 2220.2336 | G13: 113231.9136 | H13: LOCATIONS | I13: FREIGHT | J13: ADD S.T.
A14: HD BM E 5201 | B14: 108000 | C14: 1000 | D14: 6700 | E14: 12397.08 | F14: 2253.9416 | G14: 114951.0216 | H14: **T.D. | I14: RS/MT. | J14: 0.0309
A15: HD BM E5201S | B15: 107000 | C15: 1000 | D15: 6700 | E15: 12273.48 | F15: 2231.4696 | G15: 113804.9496
A16: MBM B 5500 | B16: 110200 | C16: 1000 | D16: 6400 | E16: 12706.08 | F16: 2310.1216 | G16: 117816.2016
A17: HM FILM F 5600/5400 | B17: 106450 | C17: 1000 | D17: 5950 | E17: 12298.2 | F17: 2235.964 | G17: 114034.164 | H17: SANGLI - 6 | I17: 3143 | J17: =+I17*0.0309 -> 97.1187
A18: RAF/MFIL R5801 | B18: 108850 | C18: 1000 | D18: 6450 | E18: 12533.04 | F18: 2278.6608 | G18: 116211.7008 | H18: SATARA - 5 | I18: 3223 | J18: =+I18*0.0309 -> 99.5907
A19: RAF/MFIL HD T9 | B19: 105850 | C19: 1000 | D19: 6450 | E19: 12162.24 | F19: 2211.2448 | G19: 112773.4848 | H19: KOLHAPUR-6 | I19: 3154 | J19: =+I19*0.0309 -> 97.4586
A20: HD FILM HDT6 / F5001 | B20: 108350 | C20: 1000 | D20: 7100 | E20: 12390.9 | F20: 2252.818 | G20: 114893.718 | H20: RATNAGIRI - 6 | I20: 3709 | J20: =+I20*0.0309 -> 114.6081
A21: PIPE P5200UV | B21: 111250 | C21: 1000 | D21: 6950 | E21: 12767.88 | F21: 2321.3576 | G21: 118389.2376
A22: IM M 5018L/M 5025L/M5818 | B22: 104400 | C22: 1000 | D22: 6350 | E22: 11995.38 | F22: 2180.9076 | G22: 111226.2876 | H22: WAI | I22: 3227 | J22: =+I22*0.0309 -> 99.7143
A23: RAF HD T10 / HD T10S | B23: 106450 | C23: 1000 | D23: 6250 | E23: 12261.12 | F23: 2229.2224 | G23: 113690.3424 | H23: SOLAPUR - 6 | I23: 3050 | J23: =+I23*0.0309 -> 94.245
A24: PIPE P 5300 | B24: 111700 | C24: 1000 | D24: 7000 | E24: 12817.32 | F24: 2330.3464 | G24: 118847.6664
A25: PIPE P5200(P.E-63) | B25: 109750 | C25: 1000 | D25: 6950 | E25: 12582.48 | F25: 2287.6496 | G25: 116670.1296
A26: HD T9C | B26: 99850 | C26: 0 | D26: 2250 | E26: 12063.36 | F26: 2193.2672 | G26: 111856.6272
A27: OG | B27: 98850 | C27: 0 | D27: 2200 | E27: 11945.94 | F27: 2171.9188 | G27: 110767.8588
A28: PP
A29: FILM F 110 | B29: 110800 | C29: 1000 | D29: 6400 | E29: =+(B29-C29-D29)*0.1236 -> 12780.24 | F29: =+(B29-C29-D29+E29)*0.02 -> 2323.6048 | G29: =+B29-C29-D29+E29+F29 -> 118503.8448 | H29: *T.D.=TRANSIT DAYS
A30: HPIM M 103 | B30: 110600 | C30: 1000 | D30: 7250 | E30: 12650.46 | F30: 2300.0092 | G30: 117300.4692
A31: HPIM M 110 | B31: 109250 | C31: 1000 | D31: 6450 | E31: 12582.48 | F31: 2287.6496 | G31: 116670.1296
A32: TF T 103 / T 105N | B32: 111350 | C32: 1000 | D32: 6450 | E32: 12842.04 | F32: 2334.8408 | G32: 119076.8808
A33: RAFFIA R 103 | B33: 115150 | C33: 1000 | D33: 7250 | E33: 13212.84 | F33: 2402.2568 | G33: 122515.0968
A34: BOPP F 103 / F 103S | B34: 111550 | C34: 1000 | D34: 6700 | E34: 12835.86 | F34: 2333.7172 | G34: 119019.5772
A35: PP M 108/ M106 | B35: 109150 | C35: 1000 | D35: 6850 | E35: 12520.68 | F35: 2276.4136 | G35: 116097.0936
A36: PP F135 / E125 | B36: 111150 | C36: 1000 | D36: 6650 | E36: 12792.6 | F36: 2325.852 | G36: 118618.452
A37: PP HP OG | B37: 104250 | C37: 0 | D37: 0 | E37: 12885.3 | F37: 2342.706 | G37: 119478.006
A38: PP PS | B38: 100250 | C38: 0 | D38: 0 | E38: 12390.9 | F38: 2252.818 | G38: 114893.718
A39: PP WS | B39: 98250 | C39: 0 | D39: 0 | E39: 12143.7 | F39: 2207.874 | G39: 112601.574
A40: PP CP/RCP
A41: PPCP M 311T | B41: 116100 | C41: 1000 | D41: 7300 | E41: =+(B41-C41-D41)*0.1236 -> 13324.08 | F41: =+(B41-C41-D41+E41)*0.02 -> 2422.4816 | G41: =+B41-C41-D41+E41+F41 -> 123546.5616
A42: PPCP M 340 / M365 | B42: 113800 | C42: 1000 | D42: 7050 | E42: 13070.7 | F42: 2376.414 | G42: 121197.114
A43: PP CP M 310 | B43: 114500 | C43: 1000 | D43: 6650 | E43: 13206.66 | F43: 2401.1332 | G43: 122457.7932
A44: PP CP M 312 | B44: 112600 | C44: 1000 | D44: 7400 | E44: 12879.12 | F44: 2341.5824 | G44: 119420.7024
A45: PP CP M 304 / M 325 | B45: 112550 | C45: 1000 | D45: 7350 | E45: 12879.12 | F45: 2341.5824 | G45: 119420.7024
A46: PP CP M 307 / M 315 | B46: 112050 | C46: 1000 | D46: 7350 | E46: 12817.32 | F46: 2330.3464 | G46: 118847.6664
A47: PP RCP B 200 | B47: 112900 | C47: 1000 | D47: 7000 | E47: 12965.64 | F47: 2357.3128 | G47: 120222.9528
A48: PP RCP B202S | B48: 115900 | C48: 1000 | D48: 6000 | E48: 13460.04 | F48: 2447.2008 | G48: 124807.2408
A49: PP RCP M212S | B49: 114100 | C49: 1000 | D49: 7400 | E49: 13064.52 | F49: 2375.2904 | G49: 121139.8104
A50: LLDPE
A51: FILM 71601D | B51: 111450 | C51: 1000 | D51: 8400 | E51: =+(B51-C51-D51)*0.1236 -> 12613.38 | F51: =+(B51-C51-D51+E51)*0.02 -> 2293.2676 | G51: =+B51-C51-D51+E51+F51 -> 116956.6476
A52: FILM 71501S,71601W | B52: 110900 | C52: 1000 | D52: 8850 | E52: 12489.78 | F52: 2270.7956 | G52: 115810.5756
A53: FILM 71602 S / W | B53: 110900 | C53: 1000 | D53: 8850 | E53: 12489.78 | F53: 2270.7956 | G53: 115810.5756
A54: ROTO 73005 T/73204 T | B54: 108750 | C54: 1000 | D54: 6200 | E54: 12551.58 | F54: 2282.0316 | G54: 116383.6116
A55: ROTO 73005 TU | B55: 110250 | C55: 1000 | D55: 6200 | E55: 12736.98 | F55: 2315.7396 | G55: 118102.7196
A56: EC 72307 E | B56: 113950 | C56: 1000 | D56: 7300 | E56: 13058.34 | F56: 2374.1668 | G56: 121082.5068
A57: LLT - 12 | B57: 113450 | C57: 1000 | D57: 7300 | E57: =+(B57-C57-D57)*0.1236 -> 12996.54 | F57: 2362.9308 | G57: 120509.4708
A58: OG | B58: 103850 | C58: 0 | D58: 2350 | E58: 12545.4 | F58: 2280.908 | G58: 116326.308
A59: POST SALES QUANTITY DISCOUNT AS APPLICABLE
A60: QTY. MT FOR HD / LL | B60: >= 10 | C60: >=15 | D60: >=30 | E60: >=60 | F60: >= 100 | G60: >= 200 | H60: >= 400
A61: HDPE/LLDPE | B61: 300/- | C61: 300/- | D61: 400/- | E61: 450/- | F61: 550/- | G61: 650/- | H61: 750/-
A62: QTY. MT FOR PP | B62: >=15 | C62: >=30 | D62: >=60 | E62: >=100 | F62: >=200 | G62: >=400
A63: PP | B63: 300/- | C63: 400/- | D63: 450/- | E63: 550/- | F63: 650/- | G63: 750/-
A64: · FOR CREDIT PURCHASE INTREST FREE CREDIT WILL BE 14 DAYS FROM THE DATE OF INVOICE. AN EPI
A65: RS. 70 / MT PER DAY FOR EX-PLANT
A66: · Trade Discount of Rs. 4000 PMT applicable on R103 - to be adjusted pre-exice basis on Ex-plant sales only.
A67: · Trade Discount of Rs. 3000 PMT applicable on R5801 - to be adjusted pre-exice basis on Ex-plant sales only.
A68: · Trade Discount of Rs. 2000 PMT applicable on B5500 - to be adjusted pre-exice basis on Ex-plant sales only.
A69: · NON PRIME GRADE RS.800/MT LESS THAN THE BASIC PRIME GRADE.
A70: · CHEQUE RETURN PENALTY RS.1000/-PER INSTRUMENT.
A71: · UNLOADING & VARAI CHARGES TO BE BORNE BY THE CUSTOMER.
A72: · “C” FORM REQUIRED IN ADVANCE.
A73: · QUANTITY DISCOUNT WOULD NOT BE APPLICABLE ON COMBINATION OF HDPE AND LLDPE GRADES.
A74: · PRICE MAY CHANGE WITHOUT ANY PRIOR NOTICE. PRICE PREVAILING AT THE TIME OF DISPATCH WILL APPLY.
A75: REGARDS
A76: HITESH SHAH - 9820106078
A77: MUKESH SHAH - 9322238059

Sheet STOCK POINT
A1: GANPATI PETROCHEMICALS
A2: Consigment Stockist of : HALDIA PETROCHEMICALS LTD.
A3: 152,Sanjay Bldg. No. 6,Mittal Ind.Estate,Andheri Kurla Road,Marol,Andheri(East),MUMBAI-400 059.
A4: Tel. 28509801 / 28517451 Telefax. 28509802 E- MAIL ganpetro@vsnl.com
A5: Bhivandi W.H. Add :- Godown No. 20,Thakkar Compound,Valgaon,Anjur Rd,Bhivandi,Dist. Thane.
A6: Tel :- 02522-271056 , 09324038864, 09967898962
A7: Daman W.H.Add. :- House No. DGGP/10-B, Survey No. 747 & 748, Village Kalaria, Nani Daman,
A8: Daman - 396 210. Tel :- 0260 - 2240086, Mobile - 09377319643
A9: STOCK POINT HD, LL & PP CREDIT PRICE W.E.F. DT. 19.09.2013
C10: BHIVANDI | D10: DAMAN / SILVASSA
B11: HDPE
B12: IM M 6007L / M 5005L | C12: 118070 | D12: 118153
B13: M 5002 L | C13: 117508 | D13: 117591
B14: M5018 L / M 5025L / M5818 | C14: 114931 | D14: 115338
B15: HD BM B 6401 | C15: 117955 | D15: 118095
B16: HD BM/FILM E 5201S | C16: 118517 | D16: 118657
B17: HD BM/FILM E 5201 | C17: 119679 | D17: 119819
B18: HD T10 | C18: 117395 | D18: 118498
B19: HM B 5500 | C19: 120241 | D19: 120381
B20: HM FILM F 5600/5400 | C20: 118197 | D20: 118325
B21: MFIL/RAF R5801 | C21: 117448 | D21: 117588
B22: RAF / HD T 9 / R 6001L | C22: 116593 | D22: 117521
B23: HD T 6 / F 5001 | C23: 118828 | D23: 119187
B24: P5200 ( P.E. - 63 ) | C24: 121459 | D24: 121542
B25: PIPE P 5300 | C25: 123585 | D25: 123667
B26: PIPE P5200UV | C26: 123145 | D26: 123227
B27: PP
B28: FILM F 110 | C28: 123320 | D28: 123550
B29: HPIM M 110 | C29: 121700 | D29: 121850
B30: HPIM M 103 | C30: 122450 | D30: 122480
B31: RAFFIA R 103 | C31: 122970 | D31: 123110
B32: HPIM M108 / M106 | C32: 121130 | D32: 121270
B33: HP PP F135 / E125 | C33: 123660 | D33: 124490
B34: PP F103 | C34: 124060 | D34: 124260
B35: PP CP/RCP
B36: PP CP M 340 / M365 | C36: 126240 | D36: 126390
B37: PP CP M 312 | C37: 124460 | D37: 124610
B38: PP CP M 304 / M 325 | C38: 124460 | D38: 124610
B39: PP CP M 307 / M 315 | C39: 123890 | D39: 124030
B40: PP RCP B 200 | C40: 125260 | D40: 126210
B41: TF T 103 / T 105N | C41: 124120 | D41: 124720
B42: PP CP M 310 | C42: 127510 | D42: 127590
B43: PP RCP M212S | C43: 126180 | D43: 126270
B44: B202S | C44: 129860 | D44: 130000
B45: LLDPE
B46: FILM 71601D | C46: 121434 | D46: 121575
B47: FILM 71601W / 71602 S/W | C47: 120310 | D47: 120451
B48: ROTO 73005 T / 73204 T | C48: 120885 | D48: 121025
B49: ROTO 73005 TU / 73204 TU | C49: 122570 | D49: 122710
B50: FILM 71501 S | C50: 120310 | D50: 120451
B51: EC 72307 E | C51: 125825 | D51: 125908
B52: LLT-12 | C52: 125263 | D52: 125346
A53: The above prices are Credit Prices & are inclusive of Excise Duty @ 12.36 %.
A54: Local VAT Tax and other duties and levies applicable at prevailing rate.
A55: Transportation Charges from our Warehouse in Customers Account.
A56: Cash disc. For Ex-stock sales will be Rs. 1000/- per MT on HDPE, LLDPE, PP & PPCP
A57: Non Prime Grade Rs. 900/MT less than the Prime Grade
A58: on post-ED basis for cash customer.
A59: PRICE MAY CHANGE WITHOUT ANY PRIOR NOTICE. PRICE PREVAILING AT THE TIME OF DISPATCH WILL APPLY.
A60: REGARDS
A61: HITESH SHAH - 9820106078
A62: MUKESH SHAH - 9322238059

Sheet Sheet1
